{"text_format":"1","workbook":"xlsx","n_sheets":26,"sheets":["Front Page","Performance Requirements","Inlet Station","Primary Treatement","EQ-Buffer  - Storage","Calamity Tank ","Chemical Storage & Dosing","Anaerobic Unit","Biogas Treatment","Aerobic Unit ","Outlet","Odour Control","Laboratory equipment","Civil work & Buildings","Piping and Insulation","Pipe Bridges and Support","Structures and Platforms","Other Mechanical Works","Automation","Electrical Installations","Documentation","Training","Required Makes - Mechanical","Required Makes - Electrical","Required Makes - Paint","Revision History"],"not_rendered":{"charts":0,"images":4,"macros":1,"external_links":4,"defined_names":210,"comments":1,"pivot_tables":0},"unopened":[],"bounds":{"document_bytes":16777216,"sheet_cells":100000,"rows_first":2000,"rows_last":500,"rows_between":2000,"halvings":0,"cell_chars":16384,"cell_head_chars":4096},"cells_cut":0,"cells_raw":0,"read":"whole","date_system":"1900"}

{"sheet":"Front Page","index":0,"n_rows":38,"n_cols":2,"rows_kept":38,"cut":false,"hidden":false,"merged":[[1,0,1,1],[13,0,13,1]]}
["Front Page","GTS.ENV.BTS.DSH.001"]
["Basic information"]
[]
["Project","BTS Samlesbury"]
["Project No.","  "]
["Contract No."]
["Contractor","Global Water Engineering"]
[]
["Fill-in date"]
["Revision date"]
[]
[]
[]
["Sheet overview with links"]
["User Instructions","Sludge Treatment"]
["Performance Requirements","Laboratory Equipment"]
["Utility Consumptions","Civil Work & Buildings"]
[{"$f":"'Inlet Station'!A1:G1","v":"Inlet Station"},"Piping and Insulation"]
["Buffer - Storage","Pipe Bridges and Support"]
["Chemical Storage & Dosing","Structures and Platforms"]
["Anaerobic Unit","Other Mechanical Works"]
["Aerobic Unit ","Control System"]
[null,"Electrical Installation"]
[null,"Documentation"]
[null,"Training"]
["Phosphorous Removal","Required Makes - Mechanical"]
["Outlet Station","Required Makes - Electrical"]
["Disinfection","Requiresd Makes - Paint"]
["Biogas Treatment","Revision History"]
["Odour Control"]
[]
[]
[]
[]
[]
[]
[]
[" "]

{"sheet":"Performance Requirements","index":1,"n_rows":77,"n_cols":12,"rows_kept":77,"cut":false,"hidden":false,"merged":[[38,3,38,4],[38,5,38,6],[38,7,38,8],[39,3,39,4],[39,5,39,6],[39,7,39,8],[35,3,35,4],[35,5,35,6],[35,7,35,8],[36,3,36,4],[36,5,36,6],[36,7,36,8],[37,3,37,4],[37,5,37,6],[37,7,37,8],[76,3,76,4],[1,3,1,4],[3,3,3,4],[43,3,43,4],[44,3,44,4],[45,3,45,4],[4,3,4,4],[5,3,5,4],[6,3,6,4],[7,3,7,4],[8,3,8,4],[9,3,9,4],[13,3,13,4],[14,3,14,4],[18,3,18,4],[19,3,19,4],[11,3,11,4],[12,3,12,4],[20,3,20,4],[21,3,21,4],[70,3,70,4],[68,3,68,4],[69,3,69,4],[71,3,71,4],[1,5,1,6],[3,5,3,6],[4,5,4,6],[5,5,5,6],[6,5,6,6],[46,3,46,4],[47,3,47,4],[52,3,52,4],[48,3,48,4],[51,3,51,4],[33,3,33,4],[34,3,34,4],[40,3,40,4],[42,3,42,4],[28,3,28,4],[30,3,30,4],[31,3,31,4],[32,3,32,4],[23,3,23,4],[24,3,24,4],[25,3,25,4],[29,3,29,4],[29,5,29,6],[26,3,26,4],[27,3,27,4],[10,3,10,4],[12,5,12,6],[13,5,13,6],[14,5,14,6],[18,5,18,6],[19,5,19,6],[7,5,7,6],[8,5,8,6],[9,5,9,6],[10,5,10,6],[11,5,11,6],[22,5,22,6],[16,5,16,6],[15,5,15,6],[17,5,17,6],[40,5,40,6],[42,5,42,6],[26,5,26,6],[27,5,27,6],[28,5,28,6],[30,5,30,6],[31,5,31,6],[20,5,20,6],[21,5,21,6],[23,5,23,6],[24,5,24,6],[25,5,25,6],[1,7,1,8],[3,7,3,8],[4,7,4,8],[5,7,5,8],[6,7,6,8],[76,5,76,6],[70,5,70,6],[71,5,71,6],[72,5,72,6],[73,5,73,6],[74,5,74,6],[48,5,48,6],[51,5,51,6],[52,5,52,6],[68,5,68,6],[69,5,69,6],[43,5,43,6],[44,5,44,6],[45,5,45,6],[46,5,46,6],[47,5,47,6],[32,5,32,6],[33,5,33,6],[34,5,34,6],[12,7,12,8],[13,7,13,8],[14,7,14,8],[18,7,18,8],[19,7,19,8],[7,7,7,8],[8,7,8,8],[9,7,9,8],[10,7,10,8],[11,7,11,8],[34,7,34,8],[40,7,40,8],[42,7,42,8],[26,7,26,8],[27,7,27,8],[28,7,28,8],[30,7,30,8],[31,7,31,8],[20,7,20,8],[21,7,21,8],[23,7,23,8],[24,7,24,8],[25,7,25,8],[29,7,29,8],[2,3,2,4],[2,5,2,6],[2,7,2,8],[49,3,49,4],[49,5,49,6],[49,7,49,8],[76,7,76,8],[70,7,70,8],[71,7,71,8],[72,7,72,8],[73,7,73,8],[74,7,74,8],[48,7,48,8],[51,7,51,8],[52,7,52,8],[68,7,68,8],[69,7,69,8],[43,7,43,8],[44,7,44,8],[45,7,45,8],[46,7,46,8],[47,7,47,8],[32,7,32,8],[33,7,33,8],[55,3,55,4],[55,5,55,6],[55,7,55,8],[56,3,56,4],[56,5,56,6],[56,7,56,8],[53,3,53,4],[53,5,53,6],[53,7,53,8],[54,3,54,4],[54,5,54,6],[54,7,54,8],[59,3,59,4],[59,5,59,6],[59,7,59,8],[60,3,60,4],[60,5,60,6],[60,7,60,8],[57,3,57,4],[57,5,57,6],[57,7,57,8],[58,3,58,4],[58,5,58,6],[58,7,58,8],[63,3,63,4],[63,5,63,6],[63,7,63,8],[64,3,64,4],[64,5,64,6],[64,7,64,8],[61,3,61,4],[61,5,61,6],[61,7,61,8],[62,3,62,4],[62,5,62,6],[62,7,62,8],[75,3,75,4],[75,5,75,6],[75,7,75,8],[65,3,65,4],[65,5,65,6],[65,7,65,8],[66,3,66,4],[66,5,66,6],[66,7,66,8],[74,3,74,4],[72,3,72,4],[73,3,73,4]]}
["Performance Requirements",null,null,null,null,null,null,null,null,null,null,"Front Page"]
["No.","Description","Units","Ab InBev",null,"Ab InBev",null,"Ab InBev",null,"Testing Regime/Comments","Contractor","User Instruction"]
["I","BTS Influent Characteristics ",null,"Year 1",null,"Year 2",null,"Year 3"]
[1,"Production data "]
[1.1000000000000001,"Prduction - peak brewhouse volume final gravity","hl/day",null,null,18900]
[1.2,"Water usage brewery","hl/hl",null,null,3.08]
[1.3,"Prduction - peak soft drinks volume","hl/day"]
[1.4,"Water usage soft drinks","hl/hl"]
[1.5,"Prduction - peak malt volume","ton/day"]
[1.6,"Water usage malting","m3/ton"]
[1.7,"Index of Organic Load Brewery","kgCOD/hl",null,null,1.3]
[1.8,"Index of Organic Load Soft Drinks","kgCOD/hl"]
[1.9,"Index of Organic Load Malting","kgCOD/ton"]
[2,"BTS Hydrulic load","m3/d",{"$f":"D15+D19+D20","v":0},null,{"$f":"F17","v":4819.6000000000004},null,{"$f":"H15+H19+H20","v":0},null,"Acceptance test on full cpacity needed","confirmed, assuming full flow is available during acceptance test for the relevant parts of the BTS"]
[2.1,"Hydraulic load brewery","m3/day",{"$f":"(D5*D6/10-D5/10)-(D5/10*4%)","v":0},null,{"$f":"(F5*F6/10-F5/10)-(F5/10*4%)","v":3855.6},null,{"$f":"(H5*H6/10-H5/10)-(H5/10*4%)","v":0},null,null,"confirmed"]
[2.2000000000000002,"Rainwater correction ","m3/day",null,null,964,null,null,null,null,"confirmed, can this be disconnected from process sewer network ?"]
[2.2999999999999998,"Hydraulic load to BTS","m3/day",null,null,{"$f":"F15+F16","v":4819.6000000000004},null,null,null,"Acceptance test on full cpacity needed","confirmed, assuming full flow is available during acceptance test","Full effluent flow to screening + pumping station "]
[2.4,"Hydraulic load treated ","m3/day",null,null,{"$f":"2892","v":2892},null,null,null,"Acceptance test on full cpacity needed","confirmed, assuming full flow is available during acceptance test"," (60% of total flow) EQ+CAL+Biological treatment"]
[2.5,"Hydraulic load soft drinks","m3/day",{"$f":"(D7*D8/10-D7/10)-(D7/10*1%)","v":0},null,{"$f":"(F7*F8/10-F7/10)-(F7/10*1%)","v":0},null,{"$f":"(H7*H8/10-H7/10)-(H7/10*1%)","v":0},null,null,"not applicable"]
[2.6,"Hydraulic load malting","m3/day",{"$f":"D9*D10","v":0},null,{"$f":"F9*F10","v":0},null,{"$f":"H9*H10","v":0},null,null,"not applicable"]
[3,"BTS Organic load","kg/day",{"$f":"D22+D24+D25","v":0},null,{"$f":"F23","v":15000},null,{"$f":"H22+H24+H25","v":0},null,"Acceptance test at min 80% of the desin needed ","confirmed, assuming min. 80% of the design organic load and flow are available during acceptance test","biological treatment "]
[3.1,"Index of Organic Load Brewery","kg/day",{"$f":"D5*D11","v":0},null,{"$f":"F5*F11","v":24570},null,{"$f":"H5*H11","v":0},null,null,"confirmed","total load from Brewery "]
[3.2,"Organic load treated in BTS ","kg/day",null,null,15000,null,null,null,"Acceptance test at min 80% of the design needed ","confirmed, assuming min. 80% of the design organic load and flow are available during acceptance test","biological treatment "]
[3.2,"Index of Organic Load Soft Drinks","kg/day",{"$f":"D7*D12","v":0},null,{"$f":"F7*F12","v":0},null,{"$f":"H7*H12","v":0},null,null,"not applicable"]
[3.3,"Index of Organic Load Malting","kg/day",{"$f":"D9*D13","v":0},null,{"$f":"F9*F13","v":0},null,{"$f":"H9*H13","v":0},null,null,"not applicable"]
[3.4,"Calculated COD concentration total ","mg/l",{"$f":"D21/D14*1000","v":{"$error":"#DIV/0!"}},null,{"$f":"F22/F14*1000","v":5097.9334384596223},null,{"$f":"H21/H14*1000","v":{"$error":"#DIV/0!"}},null,null,"confirmed"]
[3.5,"Calculated COD concentration brewery","mg/l",{"$f":"D22/D15*1000","v":{"$error":"#DIV/0!"}},null,null,null,{"$f":"H22/H15*1000","v":{"$error":"#DIV/0!"}},null,null,"not applicable"]
[3.6,"Calculated COD concentration soft drinks","mg/l",{"$f":"D24/D19*1000","v":{"$error":"#DIV/0!"}},null,{"$f":"F24/F19*1000","v":{"$error":"#DIV/0!"}},null,{"$f":"H24/H19*1000","v":{"$error":"#DIV/0!"}},null,null,"not applicable"]
[3.7,"Calculated COD concentration malting","mg/l",{"$f":"D25/D20*1000","v":{"$error":"#DIV/0!"}},null,{"$f":"F25/F20*1000","v":{"$error":"#DIV/0!"}},null,{"$f":"H25/H20*1000","v":{"$error":"#DIV/0!"}},null,null,"not applicable"]
[3.8,"BOD/COD ratio","NA",0.7,null,0.7,null,0.7,null,"Please specify based on Site or Zone (incase of green field site)  statistics","confirmed"]
[4,"Macro Nutrients"]
[4.0999999999999996,"Totla Nitrogen Concentration peak","mig/l",90,null,90,null,90,null,null,"confirmed"]
[4.2,"Totla Nitrogen Concentration average","mg/l",50,null,50,null,50,null,null,"confirmed"]
[4.3,"Totla Phosphorus Concentration peak","mig/l",25,null,25,null,25,null,null,"confirmed"]
[4.4000000000000004,"Totla Phosphorus Concentration Average ","mg/l",10,null,10,null,10,null,null,"confirmed"]
[5,"Macro Nutrients"]
[5.0999999999999996,"pH min","NA",4,null,4,null,4,null,"Please specify based on Site or Zone (incase of green field site)  statistics","confirmed"]
[5.2,"pH max","mg/l",12,null,12,null,12,null,"Please specify based on Site or Zone (incase of green field site)  statistics","confirmed"]
[5.3,"T min","oC",5,null,5,null,5,null,"Please specify based on Site or Zone (incase of green field site)  statistics","to be clarified"]
[5.4,"T max","oC",80,null,80,null,80,null,"Please specify based on Site or Zone (incase of green field site)  statistics","to be clarified"]
[5,"Total Suspended Solids ","mg/l",700,null,700,null,700,null,null,"high value, to be considered as a maximum or as average ?"]
["II","BTS Main Treatment Stages "]
[6,"Primary Treatment Setlable Solids Removal Effciency","%",">80",null,">80",null,">80",null,null,"not applicable"]
[7,"Anaerobic Treatment COD Removal Effciency","%",">85",null,">85",null,">85",null,null,"Yes, expected at design characteristics as per proposal"]
[8,"Biogas generation per kg COD removed","m3/kg COD",">0,36",null,">0,36",null,">0,36",null,null,"confirmed"]
[9,"H2S Concentration Outlet Bio gas treatment","ppm","<100",null,"<100",null,"<100",null,null,"confirmed"]
[10,"H2S Concentration Outlet Odor Treatment ","ppm","<5 ",null,"<5 ",null,"<5 ",null,null,"confirmed"]
[11,"Aerobic Treatment COD Removal Effciency","%",">70%",null,">70%",null,">70%",null,null,"not applicable"]
[12,"Sludge concentration outlet thickener","% w/w",">2%",null,">2%",null,">2%",null,null,"not applicable"]
[13,"Sludge concentration outlet dewatering","% w/w",">15%",null,">15%",null,">15%",null,null,"not applicable"]
["III","Final Effluent Compliance"]
[14,"BOD","mg/l","to be specified",null,"to be specified",null,"to be specified",null,null,"Expected\n< 750","Mix BTS + Bypass "]
[15,"COD","mg/l","to be specified",null,"to be specified",null,"to be specified",null,null,"Expected \n< 1,000","Mix BTS + Bypass "]
[16,"TSS","mg/l","to be specified",null,"to be specified",null,"to be specified",null,null,"Expected \n< 1,000","Mix BTS + Bypass "]
[17,"pH min","NA","to be specified",null,"to be specified",null,"to be specified",null,null,"to be discussed","Mix BTS + Bypass "]
[18,"pH max","NA","to be specified",null,"to be specified",null,"to be specified",null,null,"to be discussed","Mix BTS + Bypass "]
[19,"T","oC","to be specified",null,"to be specified",null,"to be specified",null,null,"to be discussed"]
[20,"Conductivity","uS/cm","to be specified",null,"to be specified",null,"to be specified",null,null,"not applicable"]
[21,"TN","mg/l","to be specified",null,"to be specified",null,"to be specified",null,null,"not applicable"]
[22,"NH4-N","mg/l","to be specified",null,"to be specified",null,"to be specified",null,null,"not applicable"]
[23,"NO2-N","mg/l","to be specified",null,"to be specified",null,5,null,null,"not applicable"]
[24,"NO3-N","mg/l","to be specified",null,"to be specified",null,"to be specified",null,null,"not applicable"]
[25,"PO4-P","mg/l","to be specified",null,"to be specified",null,"to be specified",null,null,"not applicable"]
[26,"Me cintent","mg/l","to be specified",null,"to be specified",null,"to be specified",null,null,"not applicable"]
[27,"Cl-","mg/l","to be specified",null,"to be specified",null,"to be specified",null,null,"not applicable"]
[28,"SO4","mg/l","to be specified",null,"to be specified",null,"to be specified",null,null,"not applicable"]
[29,"List all other parametes as stipulated by permit ","mg/l","to be specified",null,"to be specified",null,"to be specified",null,null,"not applicable"]
["IV","Utility and auxiliary consumption"]
[30,"Heat consumption","Mj/m3","25.6",null,"to be specified",null,"to be specified",null,null,"Based on 74,160 MJ/d and daily flow of 2,892 m3"]
[31,"Electricity consumpton","kWh/kg COD","0.13",null,"to be specified",null,"to be specified",null,null,"total Energy consumption approx 20600 kWh/d and COD load of 15,000 kg/d"]
[32,"Water consumption","m3/m3","to be specified",null,"to be specified",null,"to be specified"]
[33,"Caustic consumption","kg100%/m3","to be specified",null,"to be specified",null,"to be specified",null,null,"depending on operation of brewery"]
[34,"Acid consumption","kg100%/m3","to be specified",null,"to be specified",null,"to be specified",null,null,"depending on operation of brewery"]
[35,"Coagulant for PO4-P removal consumption","kg/kg P","to be specified",null,"to be specified",null,"to be specified",null,null,"not applicable"]
[36,"Polymer for sludge dewatering consumption ","kg/ton 100%","to be specified",null,"to be specified",null,"to be specified",null,null,"not applicable"]
[37,"Disinfectants, Chlorine Dioxide [or] Ozone","mg/m3 water","to be specified",null,"to be specified",null,"to be specified",null,null,"not applicable"]
[38,"Compressed air for pneumatic valves","Nm3/min","to be specified",null,"to be specified",null,"to be specified",null,null,"specified during engineering"]

{"sheet":"Inlet Station","index":2,"n_rows":56,"n_cols":8,"rows_kept":56,"cut":false,"hidden":false,"merged":[[41,1,41,2],[19,1,19,2],[25,1,25,2],[26,1,26,2],[21,1,21,2],[22,1,22,2],[23,1,23,2],[24,1,24,2],[18,1,18,2],[13,1,13,2],[14,1,14,2],[15,1,15,2],[16,1,16,2],[17,1,17,2],[6,1,6,2],[12,1,12,2],[8,1,8,2],[9,1,9,2],[10,1,10,2],[11,1,11,2],[43,1,43,2],[27,1,27,2],[42,1,42,2],[28,1,28,2],[29,1,29,2],[30,1,30,2],[31,1,31,2],[32,1,32,2],[33,1,33,2],[34,1,34,2],[35,1,35,2],[36,1,36,2],[37,1,37,2],[38,1,38,2],[39,1,39,2],[40,1,40,2],[1,1,1,2],[2,1,2,2],[3,1,3,2],[4,1,4,2],[5,1,5,2],[55,1,55,2],[50,1,50,2],[45,1,45,2],[46,1,46,2],[49,1,49,2],[51,1,51,2],[52,1,52,2],[53,1,53,2],[48,1,48,2]]}
["Inlet Station",null,null,null,null,null,"Front Page"]
["No.","Description",null,"Units","AB InBev","Contractor","Notes","ABInBev Notes"]
[1,"Inlet station"]
[{"$f":"A3+1","v":2},"Daily flow",null,"m3/d","To be specified",{"$f":"'Performance Requirements'!F17:G17","v":4819.6000000000004},"Full effluent flow "]
[{"$f":"A4+1","v":3},"Minimum hydraulic retention Time",null,"h","To be specified","0,13 at peak flow"]
[4,"Hourly flow, average",null,"m3/h","To be specified",200]
[5,"Hourly flow, max.",null,"m3/h","To be specified","300 (to be confirmed)"]
[]
[{"$f":"A7+1","v":6},"Inlet station tank "]
[{"$f":"A9+1","v":7},"Shape of tank - circular",null,null,"To be specified","by civil contractor"]
[{"$f":"A10+1","v":8},"Shape of tank - rectangular",null,null,"To be specified","by civil contractor"]
[9,"Dimension of tank ",null,"L/B/H or D/H","To be specified","by civil contractor"]
[10,"Net volume",null,"m3","To be specified",40]
[11,"Gross volume",null,"m3","To be specified","by civil contractor"]
[12,"Top cover",null,null,"To be specified","by civil contractor"]
[13,"Manhole incl. safety switch",null,null,"To be specified","by civil contractor"]
[14,"Manhole diameter ",null,"mm","To be specified","by civil contractor"]
[15,"Construction: Material",null,null,"Specify material and material quality ","concrete"]
[16,"Coating",null,null,"To be specified","by civil contractor"]
[17,"Odor removal ",null,null,"To be supplied","not included"]
[]
[{"$f":"A19+1","v":17},"Coarse screen",null,"pcs",null,1]
[{"$f":"A22+1","v":18},"Bar Spacing",null,"mm","To be specified",10]
[{"$f":"A23+1","v":19},"Location",null,null,"To be specified ","Mounted in a channel on the inlet of the lift station"]
[{"$f":"A24+1","v":20},"Maximum capacity",null,"m3/h","To be specified",{"$f":"F7","v":"300 (to be confirmed)"}]
[{"$f":"A25+1","v":21},"Cleaning equipment",null,null,"to be supplied - automatic","confirmed"]
[{"$f":"A26+1","v":22},"Material",null,null,"To be specified","Stainless steel AISI 304"]
[]
[{"$f":"A27+1","v":23},"Water pump station",null,null,"To be supplied","confirmed"]
[{"$f":"A29+1","v":24},"Pumps",null,"pcs","min 1 working and 1 stand by","1 + 1 standby"]
[{"$f":"A30+1","v":25},"Make",null,null,"To be specified","KSB or equivalent"]
[26,"Type",null,null,"To be specified","submersible"]
[27,"Capacity per pump",null,"m3/h","To be specified",{"$f":"F7","v":"300 (to be confirmed)"}]
[28,"Pumping head",null,"Bar","To be specified","1,5 (depending on depth incoming sewer)"]
[29,"Pump speed",null,"rpm","To be specified",2900]
[30,"Size of motor",null,"Kw","To be specified",21]
[31,"Motor efficiency",null,null,"To be specified","87,5 % at 4/4 load"]
[32,"Frequency converter",null,null,"To be supplied","confirmed"]
[33,"Impeller construction material",null,null,"To be supplied","stainless steel"]
[34,"Pump house material",null,null,"To be specified","cast iron"]
[35,"Lifting device for maintenance",null,null,"To be supplied","confirmed"]
[]
[{"$f":"A41+1","v":36},"Other equipment"]
[{"$f":"A43+1","v":37},"Equipment for safte access and maintenance ",null,null,"To be supplied","lifting device only, access to pumping station by civil contractor"]
[]
[{"$f":"A44+1","v":38},"Piping"]
[{"$f":"A46+1","v":39},"Piping material - resitent to influent media",null,null,"To be specified","HDPE"]
[]
[{"$f":"A47+1","v":40},"Instrumentation inlet station"]
[{"$f":"A49+1","v":41},"Level control HH,H,L,LL",null,null,"To be supplied","confirmed"]
[{"$f":"A50+1","v":42},"pH control ",null,null,"To be supplied","confirmed"]
[43,"Temperature control",null,null,"To be supplied","confirmed"]
[44,"Flow measurement",null,null,"To be supplied","confirmed"]
[45,"Redox measurement",null,null,"To be supplied","confirmed"]
[46,"Automatic sampler",null,null,"To be supplied","Not included"]
[47,"Option - Inline COD (TOC), TSS measurement",null,null,"To be specified","confirmed"]

{"sheet":"Primary Treatement","index":3,"n_rows":24,"n_cols":8,"rows_kept":24,"cut":false,"hidden":false,"merged":[[7,1,7,2],[8,1,8,2],[6,1,6,2],[1,1,1,2],[2,1,2,2],[3,1,3,2],[4,1,4,2],[5,1,5,2],[21,1,21,2],[9,1,9,2],[10,1,10,2],[11,1,11,2],[12,1,12,2],[13,1,13,2],[14,1,14,2],[15,1,15,2],[16,1,16,2],[17,1,17,2],[18,1,18,2],[19,1,19,2],[20,1,20,2],[44,1,44,2],[22,1,22,2],[23,1,23,2],[24,1,24,2],[25,1,25,2],[26,1,26,2],[27,1,27,2],[28,1,28,2],[39,1,39,2],[40,1,40,2],[42,1,42,2],[43,1,43,2],[52,1,52,2],[46,1,46,2],[47,1,47,2],[48,1,48,2],[49,1,49,2],[50,1,50,2],[51,1,51,2]]}
["Inlet Station",null,null,null,null,null,"Front Page"]
["No.","Description",null,"Units","AB InBev","Contractor","Notes","ABInBev Notes"]
[1,"Fine Screen",null,"pcs"]
[{"$f":"A3+1","v":2},"Screen sizing",null,"mm","<1","1 mm","full effluent flow "]
[{"$f":"A4+1","v":3},"Location",null,null,"to be specified ","inlet EQ-buffer"]
[4,"Cleaning equipment",null,null,"Automatic","confirmed"]
[5,"Flush water ",null,null,"Recovered treated BTS effluent","not confirmed, nozzles would get clogged, cleaning with factory water"]
[6,"Type",null,null,"to be specified ","externally fed rotary screen"]
[7,"Capacity",null,null,"To be specified"]
[8,"Material",null,null,"Stainless steel / min. SS304, non-stainless steel parts to be protected/coated","confirmed"]
[9,"Transportation system for screen material",null,null,"To be supplied","confirmed"]
[10,"Reception container",null,null,"To be supplied","confirmed"]
[]
[{"$f":"A12+1","v":11},"Optional 'Primary sedimentation tank ",null,"pcs","to be specified ","not applicable"]
[{"$f":"A14+1","v":12},"Type",null,null,"to be specified ","not applicable"]
[{"$f":"A15+1","v":13},"Make",null,null,"to be specified ","not applicable"]
[14,"Volume ",null,"m3","to be specified ","not applicable"]
[15,"Settlieng surface",null,"m2","to be specified ","not applicable"]
[16,"Surface loading rate",null,"kgTSS/m2/h","to be specified ","not applicable"]
[17,"Sludge pumps",null,"pcs","to be specified ","not applicable"]
[18,"Sludge pumps Make",null,null,"to be specified ","not applicable"]
[19,"Sludge pumps Type",null,null,"to be specified ","not applicable"]
[20,"Sludge pumps capacity per pump",null,"m3/h","to be specified ","not applicable"]
[21,"sludge line sampling valve ",null,null,"to be supplied ","not applicable"]

{"sheet":"EQ-Buffer  - Storage","index":4,"n_rows":66,"n_cols":8,"rows_kept":66,"cut":false,"hidden":false,"merged":[[50,1,50,2],[51,1,51,2],[52,1,52,2],[53,1,53,2],[54,1,56,1],[57,1,57,2],[63,1,63,2],[64,1,64,2],[65,1,65,2],[66,1,66,2],[59,1,59,2],[60,1,60,2],[61,1,61,2],[62,1,62,2],[58,1,58,2],[45,1,45,2],[46,1,46,2],[47,1,47,2],[48,1,48,2],[49,1,49,2],[40,1,40,2],[41,1,41,2],[42,1,42,2],[43,1,43,2],[44,1,44,2],[29,1,29,2],[30,1,30,2],[39,1,39,2],[38,1,38,2],[22,1,22,2],[23,1,23,2],[26,1,26,2],[27,1,27,2],[28,1,28,2],[36,1,36,2],[37,1,37,2],[31,1,31,2],[32,1,32,2],[33,1,33,2],[34,1,34,2],[35,1,35,2],[1,1,1,2],[2,1,2,2],[3,1,3,2],[5,1,5,2],[6,1,6,2],[7,1,7,2],[8,1,8,2],[9,1,9,2],[4,1,4,2],[13,1,13,2],[14,1,14,2],[15,1,15,2],[16,1,16,2],[17,1,17,2],[21,1,21,2],[18,1,18,2],[19,1,19,2],[20,1,20,2]]}
["Equalization - 'Buffer - Storage",null,null,null,null,null,"Front Page"]
["No.","Description",null,"Units","AB InBev","Contractor","Notes","ABInBev Notes"]
[1,"EQ Buffer tank ",null,"pcs",null,1]
[{"$f":"A3+1","v":2},"Minimum hydraulic retention Time",null,"h","9 hours.'To be specified",9,"60% of total effluent flow"]
[3,"Construction: Material",null,null,"Specify material and material quality ","Coated steel"]
[4,"Shape of tank",null,null,"To be specified ","circular"]
[5,"Dimension of tank ",null,"L/B/H or D/H","To be specified","11/12"]
[6,"Net volume",null,"m3","To be specified",1080]
[7,"Gross volume",null,"m3","To be specified",1130]
[8,"Thickness of tank wall",null,"mm","To be specified","To be confirmed during engineering"]
[9,"Coating of wall",null,null,"To be specified","Epoxy or glass"]
[10,"Coating of bottom",null,null,"To be specified","tank without bottom, coating of concrete slab by civil contractor"]
[11,"Coating of top",null,null,"To be specified","not applicable"]
[12,"Top cover",null,null,"To be specified","GRP"]
[13,"Manhole incl. safety switch",null,null,"To be specified","Manhole without safety switch"]
[14,"Manhole diameter ",null,"mm","To be specified",800]
[15,"Insulation material (if applicable based on ambient temperature)",null,null,"To be specified","Rockwool (option)"]
[16,"Insulation thickness ",null,"mm","To be specified",50]
[17,"Cladding of insulated tank.",null,null,"To be specified","Included"]
[18,"External ladder to tank top or Common walkway for group of vessels",null,null,"To be specified","Included"]
[19,"Material of Ladder or Walkway",null,null,"To be specified","Galvanized steel"]
[20,"Protection handrail of tank top",null,null,"To be specified","no peripheral handrailing, only on working platform"]
[21,"Material of tank top handrail",null,null,"To be specified","not applicable"]
[22,"Overflow pipe ",null,null,"To be specified","to calamity tank"]
[23,"Odor removal ",null,null,"To be specified","confirmed"]
[24,"Vacuum-pressure protection",null,null,"To be specified","open vent, slight underpressure created by air ventilation"]
[25,"By-pass facility to next process unit",null,null,"To be specified","(partial) bypass to discharge"]
[]
[{"$f":"A27+1","v":26},"Agitators"]
[{"$f":"A29+1","v":27},"Type",null,null,"To be specified","side entry"]
[{"$f":"A30+1","v":28},"Material",null,null,"To be specified","stainless steel AISI 316"]
[29,"Design of blades",null,null,"To be specified","“BD” high efficiency impeller"]
[30,"Mount of agitator",null,null,"Top/side/bottom. To be specified","side entry"]
[31,"Diameter of agitator ",null,"mm","To be specified",700]
[32,"Motor size for agitator",null,"kW","To be specified",5.5]
[33,"Frequency converter",null,null,"To be specified","no"]
[34,"Speed controlle range",null,"rpm","To be specified","not applicable"]
[35,"Mixing efficiency",null,"W/m3 water","max. 3 W/m3. 'To be specified",5]
[]
[{"$f":"A27+1","v":26},"EQ-Buffer pumps",null,null,"To be supplied","confirmed"]
[{"$f":"A40+1","v":27},"Pumps",null,"pcs","To be specified","1 + 1 standby","1 for backup"]
[{"$f":"A41+1","v":28},"Make",null,null,"To be specified","KSB"]
[29,"Type",null,null,"Centrifugal","confirmed"]
[30,"Capacity per pump",null,"m3/h","To be specified",125]
[31,"Pumping head",null,"Bar","To be specified",2]
[32,"Pump speed",null,"rpm","To be specified",2900]
[33,"Size of motor",null,"Kw","To be specified",15]
[34,"Motor efficiency",null,null,"IE3 (+)","IE3"]
[35,"Frequency converter",null,null,"To be supplied","confirmed"]
[36,"Impeller construction material",null,null,"AISI 304 (+)","confirmed"]
[37,"Pump house material",null,null,"To be specified","cast iron"]
[38,"Flowmeter",null,null,"To be supplied","confirmed"]
[39,"Pressure transmitter",null,null,"To be supplied","not confirmed"]
[40,"Pressure meter",null,null,"To be supplied","confirmed, 1 manometer per pump"]
[41,"Sample valves ","Make",null,"To be specified","Sodeco Valves"]
[42,null,"Material",null,"AISI 304(+)","confirmed"]
[43,null,"Outlet - Microbiological",null,"To be supplied","not confirmed"]
[44,"Stop valve",null,null,"To be supplied","confirmed"]
[]
[]
[{"$f":"A58+1","v":45},"Instrumentation"]
[{"$f":"A61+1","v":46},"Tank level control HH,H,L,LL",null,null,"To be supplied","confirmed"]
[{"$f":"A62+1","v":47},"pH control ",null,null,"To be supplied","confirmed"]
[48,"Temperature control",null,null,"To be supplied","confirmed, via pH measurement"]
[49,"Flow measurement",null,null,"To be supplied","confirmed"]
[50,"Option - Inline COD (TOC), TSS, VFA measurement",null,null,"To be supplied","TSS confirmed"]

{"sheet":"Calamity Tank ","index":5,"n_rows":66,"n_cols":8,"rows_kept":66,"cut":false,"hidden":false,"merged":[[62,1,62,2],[63,1,63,2],[64,1,64,2],[65,1,65,2],[66,1,66,2],[61,1,61,2],[48,1,48,2],[49,1,49,2],[50,1,50,2],[51,1,51,2],[52,1,52,2],[53,1,53,2],[54,1,56,1],[57,1,57,2],[58,1,58,2],[59,1,59,2],[60,1,60,2],[47,1,47,2],[36,1,36,2],[37,1,37,2],[38,1,38,2],[39,1,39,2],[40,1,40,2],[41,1,41,2],[42,1,42,2],[43,1,43,2],[44,1,44,2],[45,1,45,2],[46,1,46,2],[35,1,35,2],[22,1,22,2],[23,1,23,2],[26,1,26,2],[27,1,27,2],[28,1,28,2],[29,1,29,2],[30,1,30,2],[31,1,31,2],[32,1,32,2],[33,1,33,2],[34,1,34,2],[21,1,21,2],[7,1,7,2],[8,1,8,2],[9,1,9,2],[13,1,13,2],[14,1,14,2],[15,1,15,2],[16,1,16,2],[17,1,17,2],[18,1,18,2],[19,1,19,2],[20,1,20,2],[6,1,6,2],[1,1,1,2],[2,1,2,2],[3,1,3,2],[4,1,4,2],[5,1,5,2]]}
[null,"Calamity ",null,null,null,null,"Front Page"]
["No.","Description",null,"Units","AB InBev","Contractor","Notes","ABInBev Notes"]
[1,"calamity tank ",null,"pcs",null,1]
[{"$f":"A3+1","v":2},"Minimum hydraulic retention Time",null,"h","3 hours.'To be specified",3.2,"60% of total effluent flow "]
[3,"Construction: Material",null,null,"Specify material and material quality ","Coated steel"]
[4,"Shape of tank",null,null,"To be specified ","circular"]
[5,"Dimension of tank ",null,"L/B/H or D/H","To be specified","7,8/8,5"]
[6,"Net volume",null,"m3","To be specified",380]
[7,"Gross volume",null,"m3","To be specified",400]
[8,"Thickness of tank wall",null,"mm","To be specified","To be confirmed during engineering"]
[9,"Coating of wall",null,null,"To be specified","Epoxy or glass"]
[10,"Coating of bottom",null,null,"To be specified","tank without bottom, coating of concrete slab by civil contractor"]
[11,"Coating of top",null,null,"To be specified","not applicable"]
[12,"Top cover",null,null,"To be specified","GRP"]
[13,"Manhole incl. safety switch",null,null,"To be specified","Manhole without safety switch"]
[14,"Manhole diameter ",null,"mm","To be specified",800]
[15,"Insulation material (if applicable based on ambient temperature)",null,null,"To be specified","Rockwool (option)"]
[16,"Insulation thickness ",null,"mm","To be specified",50]
[17,"Cladding of insulated tank.",null,null,"To be specified","Included"]
[18,"External ladder to tank top or Common walkway for group of vessels",null,null,"To be specified","Included"]
[19,"Material of Ladder or Walkway",null,null,"To be specified","Galvanized steel"]
[20,"Protection handrail of tank top",null,null,"To be specified","no peripheral handrailing, only on working platform"]
[21,"Material of tank top handrail",null,null,"To be specified","not applicable"]
[22,"Overflow pipe ",null,null,"To be specified","to discharge with level switch"]
[23,"Odor removal ",null,null,"To be specified","confirmed"]
[24,"Vacuum-pressure protection",null,null,"To be specified","open vent, slight underpressure created by air ventilation"]
[25,"By-pass facility to next process unit",null,null,"To be specified","(partial) bypass to discharge"]
[]
[{"$f":"A27+1","v":26},"Agitators"]
[{"$f":"A29+1","v":27},"Type",null,null,"To be specified","side entry"]
[{"$f":"A30+1","v":28},"Material",null,null,"To be specified","stainless steel AISI 316"]
[29,"Design of blades",null,null,"To be specified","“BD” high efficiency impeller"]
[30,"Mount of agitator",null,null,"Top/side/bottom. To be specified","side entry"]
[31,"Diameter of agitator ",null,"mm","To be specified",625]
[32,"Motor size for agitator",null,"kW","To be specified",2.2000000000000002]
[33,"Frequency converter",null,null,"To be specified","no"]
[34,"Speed controlle range",null,"rpm","To be specified","not applicable"]
[35,"Mixing efficiency",null,"W/m3 water","max. 3 W/m3. 'To be specified",6]
[]
[{"$f":"A27+1","v":26},"Calamity pumps",null,null,"To be supplied","confirmed"]
[{"$f":"A40+1","v":27},"Pumps",null,"pcs","To be specified","1 + 1 standby","1 for backup"]
[{"$f":"A41+1","v":28},"Make",null,null,"To be specified","KSB"]
[29,"Type",null,null,"Centrifugal","confirmed"]
[30,"Capacity per pump",null,"m3/h","To be specified",30]
[31,"Pumping head",null,"Bar","To be specified",1]
[32,"Pump speed",null,"rpm","To be specified",2900]
[33,"Size of motor",null,"Kw","To be specified",3]
[34,"Motor efficiency",null,null,"IE3 (+)","IE3"]
[35,"Frequency converter",null,null,"To be supplied","not confirmed"]
[36,"Impeller construction material",null,null,"AISI 304 (+)","confirmed"]
[37,"Pump house material",null,null,"To be specified","cast iron"]
[38,"Flowmeter",null,null,"To be supplied","confirmed"]
[39,"Pressure transmitter",null,null,"To be supplied","not confirmed"]
[40,"Pressure meter",null,null,"To be supplied","confirmed, 1 manometer per pump"]
[41,"Sample valves ","Make",null,"To be specified","Sodeco Valves"]
[42,null,"Material",null,"AISI 304(+)","confirmed"]
[43,null,"Outlet - Microbiological",null,"To be supplied","not confirmed"]
[44,"Stop valve",null,null,"To be supplied","confirmed"]
[]
[]
[{"$f":"A58+1","v":45},"Instrumentation"]
[{"$f":"A61+1","v":46},"Tank level control HH,H,L,LL",null,null,"To be supplied","confirmed"]
[{"$f":"A62+1","v":47},"pH control ",null,null,"To be supplied","confirmed"]
[48,"Temperature control",null,null,"To be supplied","confirmed, via pH measurement"]
[49,"Flow measurement",null,null,"To be supplied","confirmed"]
[50,"Option - Inline COD (TOC), TSS, VFA measurement",null,null,"To be supplied","TSS confirmed"]

{"sheet":"Chemical Storage & Dosing","index":6,"n_rows":230,"n_cols":7,"rows_kept":230,"cut":false,"hidden":false,"merged":[]}
["Chemical Storage & Dosing",null,null,null,null,"Front Page"]
["No.","Description","Units","AB InBev","Contractor","Notes","ABInBev Notes"]
[1,"Caustic storage & dosing"]
[{"$f":"A3+1","v":2},"Caustic solution","%","30% NaOH. To be specified","confirmed"]
[null,"Minimum hydraulic retention Time"]
[{"$f":"A4+1","v":3},"Constructions"]
[{"$f":"A6+1","v":4},"Bunded area, dimensions",null,"Hight min. 50 cm. To be specified","not applicable"]
[{"$f":"A7+1","v":5},"Position (where to be installed), ",null,"In Technical Building. To be specified","confirmed"]
[6,"Foundation, material",null,"To be specified","concrete, by civil contractor"]
[7,"Protection/coating",null,"To be specified","by civil contractor"]
[8,"Drain connections",null,"To be specified","by civil contractor"]
[]
[{"$f":"A11+1","v":9},"Storage tanks"]
[{"$f":"A13+1","v":10},"Capacity","m3","To be specified",10]
[{"$f":"A14+1","v":11},"Dimensions","L/B/H or D/H","To be specified","2 x 4,1 m"]
[12,"Tank material and quality",null,"To be specified","HDPE"]
[]
[{"$f":"A16+1","v":13},"Inlet chemical dosing pump","pcs",null,"1 + 1 standby"]
[{"$f":"A18+1","v":14},"Type",null,"To be specified","motor driven membrane dosing pump"]
[{"$f":"A19+1","v":15},"Capacity of pump","m3/h","To be specified",0.11]
[16,"Pumping head","bar","To be specified",10]
[17,"Pump Speed","rpm","To be specified","96 (stroke frequency)"]
[18,"Size of motor","kW","To be specified",0.18]
[19,"Frequency converter",null,"To be supplied","confirmed"]
[20,"Impeller construction material",null,"To be specified","not applicable"]
[21,"Pump house material",null,"To be specified","PP (dosing head)"]
[22,"Monitoring system for chemical sonsumption",null,"e.g. weight system, flow measuring, level. To be specified","level measurement storage tank"]
[23,"Filling connections incl. Couplings",null,"To be specified","confirmed"]
[]
[{"$f":"A28+1","v":24},"Other Equipment"]
[{"$f":"A30+1","v":25},"Safety equipment",null,"safety shower, eye bath, clean water hose with spray gun and hose spool. To be specified","confirmed, 1 safety shower with eye wash and 1 clean water hose with spray gun and hose spool in chemical area"]
[]
[{"$f":"A31+1","v":26},"Piping"]
[{"$f":"A33+1","v":27},"Piping material - chemicals",null,"To be specified","HDPE"]
[]
[{"$f":"A34+1","v":28},"Instrumentation"]
[{"$f":"A36+1","v":29},"Level switch",null,"To be supplied","confirmed"]
[{"$f":"A37+1","v":30},"Flow meter",null,"To be supplied","not confirmed"]
[31,"Weight system",null,"If used for dosing/consumption","not confirmed"]
[]
[{"$f":"A39+1","v":32},"Acid storage & dosing"]
[{"$f":"A41+1","v":33},"Acid to be used",null,"30% HCl. To be specified","confirmed"]
[{"$f":"A42+1","v":34},"Acid solution","%","To be specified",30]
[]
[{"$f":"A43+1","v":35},"Constructions"]
[{"$f":"A45+1","v":36},"Bunded area, dimensions",null,"Hight min. 50 cm. To be specified","not applicable"]
[{"$f":"A46+1","v":37},"Position (where to be installed), ",null,"In Technical Building. To be specified","confirmed"]
[38,"Foundation, material",null,"To be specified","concrete, by civil contractor"]
[39,"Protection/coating",null,"To be specified","by civil contractor"]
[40,"Drain connections",null,"To be specified","by civil contractor"]
[]
[{"$f":"A50+1","v":41},"Storage tanks"]
[{"$f":"A52+1","v":42},"Capacity","m3","To be specified",10]
[{"$f":"A53+1","v":43},"Dimensions","L/B/H or D/H","To be specified","2 x 4,1 m"]
[44,"Tank material and quality",null,"To be specified","HDPE"]
[]
[{"$f":"A55+1","v":45},"Dosing pump","pcs",null,"1 + 1 standby"]
[{"$f":"A57+1","v":46},"Type",null,"To be specified","motor driven membrane dosing pump"]
[{"$f":"A58+1","v":47},"Capacity of pump","m3/h","To be specified",0.11]
[48,"Pumping head","bar","To be specified",10]
[49,"Pump Speed","rpm","To be specified","96 (stroke frequency)"]
[50,"Size of motor","kW","To be specified",0.18]
[51,"Frequency converter",null,"To be supplied","confirmed"]
[52,"Impeller construction material",null,"To be specified","not applicable"]
[53,"Pump house material",null,"To be specified","PP (dosing head)"]
[54,"Monitoring system for chemical sonsumption",null,"e.g. weight system, flow measuring, level. To be specified","level measurement storage tank"]
[55,"Filling connections incl. Couplings",null,"To be specified","confirmed"]
[]
[{"$f":"A67+1","v":56},"Other Equipment"]
[{"$f":"A69+1","v":57},"Safety equipment",null,"safety shower, eye bath, clean water hose with spray gun and hose spool. To be specified","confirmed, 1 safety shower with eye wash and 1 clean water hose with spray gun and hose spool in chemical area"]
[]
[{"$f":"A70+1","v":58},"Piping"]
[{"$f":"A72+1","v":59},"Piping material - chemicals",null,"To be specified","HDPE"]
[]
[{"$f":"A73+1","v":60},"Instrumentation"]
[{"$f":"A75+1","v":61},"Level switch",null,"To be supplied","confirmed"]
[{"$f":"A76+1","v":62},"Flow meter",null,"To be supplied","not confirmed"]
[63,"Weight system",null,"If used for dosing/consumption","not confirmed"]
[]
[{"$f":"A78+1","v":64},"Phosphorous removal"]
[{"$f":"A80+1","v":65},"Chemical to be used",null,"e.g. ironchloride. To be specified","not applicable"]
[{"$f":"A81+1","v":66},"Chemical solution","%","solid or % solution. To be specified","not applicable"]
[]
[{"$f":"A82+1","v":67},"Constructions",null,null,"not applicable"]
[{"$f":"A84+1","v":68},"Bunded area, dimensions",null,"Hight min. 50 cm. To be specified","not applicable"]
[{"$f":"A85+1","v":69},"Position (where to be installed), ",null,"In Technical Building. To be specified","not applicable"]
[70,"Foundation, material",null,"To be specified","not applicable"]
[71,"Protection/coating",null,"To be specified","not applicable"]
[72,"Drain connections",null,"To be specified","not applicable"]
[]
[{"$f":"A89+1","v":73},"Storage tanks",null,null,"not applicable"]
[{"$f":"A91+1","v":74},"Capacity","m3","To be specified","not applicable"]
[{"$f":"A92+1","v":75},"Dimensions","L/B/H or D/H","To be specified","not applicable"]
[76,"Tank material and quality",null,"To be specified","not applicable"]
[]
[{"$f":"A94+1","v":77},"Dosing pump","pcs",null,"not applicable"]
[{"$f":"A96+1","v":78},"Type",null,"To be specified","not applicable"]
[{"$f":"A97+1","v":79},"Capacity of pump","m3/h","To be specified","not applicable"]
[80,"Pumping head","bar","To be specified","not applicable"]
[81,"Pump Speed","rpm","To be specified","not applicable"]
[82,"Size of motor","kW","To be specified","not applicable"]
[83,"Frequency converter",null,"To be supplied","not applicable"]
[84,"Impeller construction material",null,"To be specified","not applicable"]
[85,"Pump house material",null,"To be specified","not applicable"]
[86,"Monitoring system for chemical sonsumption",null,"e.g. weight system, flow measuring, level. To be specified","not applicable"]
[87,"Filling connections incl. Couplings",null,"To be specified","not applicable"]
[]
[{"$f":"A106+1","v":88},"Other Equipment",null,null,"not applicable"]
[{"$f":"A108+1","v":89},"Safety equipment",null,"safety shower, eye bath, clean water hose with spray gun and hose spool. To be specified","not applicable"]
[]
[{"$f":"A109+1","v":90},"Piping",null,null,"not applicable"]
[{"$f":"A111+1","v":91},"Piping material - chemicals",null,"To be specified","not applicable"]
[]
[{"$f":"A112+1","v":92},"Instrumentation",null,null,"not applicable"]
[{"$f":"A114+1","v":93},"Level switch",null,"To be supplied","not applicable"]
[{"$f":"A115+1","v":94},"Flow meter",null,"To be supplied","not applicable"]
[95,"Weight system",null,"If used for dosing/consumption","not applicable"]
[]
[{"$f":"A117+1","v":96},"Polymer (sludge dewatering)"]
[{"$f":"A119+1","v":97},"Polymer to be used",null,"To be specified","not applicable"]
[{"$f":"A120+1","v":98},"Chemical solution","%","To be specified","not applicable"]
[]
[{"$f":"A121+1","v":99},"Constructions",null,null,"not applicable"]
[{"$f":"A123+1","v":100},"Position (where to be installed), ",null,"In Technical Building. To be specified","not applicable"]
[{"$f":"A124+1","v":101},"Foundation, material",null,"To be specified","not applicable"]
[102,"Protection/coating",null,"To be specified","not applicable"]
[103,"Drain connections",null,"To be specified","not applicable"]
[]
[{"$f":"A127+1","v":104},"Storage & Mixing facility of polymer",null,null,"not applicable"]
[{"$f":"A129+1","v":105},"Storage facility of dry polymer","m2","To be specified","not applicable"]
[{"$f":"A130+1","v":106},"Filling/mixing facility (dry --> liquid)",null,"To be specified","not applicable"]
[]
[{"$f":"A131+1","v":107},"Dosing pump","pcs",null,"not applicable"]
[{"$f":"A133+1","v":108},"Type",null,"To be specified","not applicable"]
[{"$f":"A134+1","v":109},"Capacity of pump","m3/h","To be specified","not applicable"]
[110,"Pumping head","bar","To be specified","not applicable"]
[111,"Pump Speed","rpm","To be specified","not applicable"]
[112,"Size of motor","kW","To be specified","not applicable"]
[113,"Frequency converter",null,"To be supplied","not applicable"]
[114,"Impeller construction material",null,"To be specified","not applicable"]
[115,"Pump house material",null,"To be specified","not applicable"]
[116,"Monitoring system for chemical sonsumption",null,"safety shower, eye bath, clean water hose with spray gun and hose spool. To be specified","not applicable"]
[117,"Filling connections incl. Couplings",null,"To be specified","not applicable"]
[]
[{"$f":"A143+1","v":118},"Other Equipment",null,null,"not applicable"]
[{"$f":"A145+1","v":119},"Safety equipment",null,"safety shower, eye bath, clean water hose with spray gun and hose spool. To be specified","not applicable"]
[]
[{"$f":"A146+1","v":120},"Piping",null,null,"not applicable"]
[{"$f":"A148+1","v":121},"Piping material - chemicals",null,"To be specified","not applicable"]
[]
[{"$f":"A149+1","v":122},"Instrumentation",null,null,"not applicable"]
[{"$f":"A151+1","v":123},"Level switch",null,"To be supplied","not applicable"]
[{"$f":"A152+1","v":124},"Flow meter",null,"To be supplied","not applicable"]
[125,"Weight system",null,"If used for dosing/consumption","not applicable"]
[]
[{"$f":"A154+1","v":126},"Polymer (dissolved air flotation)"]
[{"$f":"A156+1","v":127},"Polymer to be used",null,"To be specified","not applicable"]
[{"$f":"A157+1","v":128},"Chemical solution","%","To be specified","not applicable"]
[]
[{"$f":"A158+1","v":129},"Constructions",null,null,"not applicable"]
[{"$f":"A160+1","v":130},"Position (where to be installed)",null,"In Technical building? To be specified","not applicable"]
[{"$f":"A161+1","v":131},"Foundation, material",null,"To be specified","not applicable"]
[132,"Protection/coating",null,"To be specified","not applicable"]
[133,"Drain connections",null,"To be specified","not applicable"]
[]
[{"$f":"A164+1","v":134},"Storage & Mixing facility of polymer",null,null,"not applicable"]
[{"$f":"A166+1","v":135},"Storage facility of dry polymer","m2","To be specified","not applicable"]
[{"$f":"A167+1","v":136},"Filling/mixing facility (dry --> liquid)",null,"To be specified","not applicable"]
[]
[{"$f":"A168+1","v":137},"Dosing pump","pcs",null,"not applicable"]
[{"$f":"A170+1","v":138},"Type",null,"To be specified","not applicable"]
[{"$f":"A171+1","v":139},"Capacity of pump","m3/h","To be specified","not applicable"]
[140,"Pumping head","bar","To be specified","not applicable"]
[141,"Pump Speed","rpm","To be specified","not applicable"]
[142,"Size of motor","kW","To be specified","not applicable"]
[143,"Frequency converter",null,"To be supplied","not applicable"]
[144,"Impeller construction material",null,"To be specified","not applicable"]
[145,"Pump house material",null,"To be specified","not applicable"]
[146,"Monitoring system for chemical sonsumption",null,"e.g. weight system, flow measuring, level. To be specified","not applicable"]
[147,"Filling connections incl. Couplings",null,"To be specified","not applicable"]
[]
[{"$f":"A180+1","v":148},"Other Equipment",null,null,"not applicable"]
[{"$f":"A182+1","v":149},"Safety equipment",null,"safety shower, eye bath, clean water hose with spray gun and hose spool. To be specified","not applicable"]
[]
[{"$f":"A183+1","v":150},"Piping",null,null,"not applicable"]
[{"$f":"A185+1","v":151},"Piping material - chemicals",null,"To be specified","not applicable"]
[]
[{"$f":"A186+1","v":152},"Instrumentation",null,null,"not applicable"]
[{"$f":"A188+1","v":153},"Level switch",null,"To be supplied","not applicable"]
[{"$f":"A189+1","v":154},"Flow meter",null,"To be supplied","not applicable"]
[155,"Weight system",null,"If used for dosing/consumption","not applicable"]
[]
[{"$f":"A191+1","v":156},"Other chemicals [Note: If required]"]
[{"$f":"A193+1","v":157},"Type of chemical and application area",null,"To be specified","antifoam"]
[{"$f":"A194+1","v":158},"Chemical solution","%","To be specified",100]
[]
[{"$f":"A195+1","v":159},"Constructions"]
[{"$f":"A197+1","v":160},"Bunded area, dimensions",null,"To be specified","standard spill box"]
[{"$f":"A198+1","v":161},"Position (where to be installed), ",null,"In Technical building? To be specified","confirmed"]
[162,"Foundation, material",null,"To be specified","concrete"]
[163,"Protection/coating",null,"To be specified","by civil contractor"]
[164,"Drain connections",null,"To be specified","by civil contractor"]
[]
[{"$f":"A202+1","v":165},"Storage tanks"]
[{"$f":"A204+1","v":166},"Capacity","m3","To be specified",0.06]
[{"$f":"A205+1","v":167},"Dimensions","L/B/H or D/H","To be specified","standard canister"]
[168,"Tank material and quality",null,"To be specified","standard canister"]
[]
[{"$f":"A207+1","v":169},"Dosing pump","pcs",null,1]
[{"$f":"A209+1","v":170},"Type",null,"To be specified","electromagnetic diaphragm dosing pump"]
[{"$f":"A210+1","v":171},"Capacity of pump","m3/h","To be specified",1.2999999999999999E-2]
[172,"Pumping head","bar","To be specified",3]
[173,"Pump Speed","rpm","To be specified","250 (stroke frequency)"]
[174,"Size of motor","kW","To be specified",1.7999999999999999E-2]
[175,"Frequency converter",null,"To be supplied","not confirmed"]
[176,"Impeller construction material",null,"To be specified","not applicable"]
[177,"Pump house material",null,"To be specified","PP (dosing head)"]
[178,"Monitoring system for chemical sonsumption",null,"e.g. weight system, flow measuring, level. To be specified","not applicable"]
[179,"Filling connections incl. Couplings",null,"To be specified","not applicable"]
[]
[{"$f":"A219+1","v":180},"Other Equipment"]
[{"$f":"A221+1","v":181},"Safety equipment",null,"safety shower, eye bath, clean water hose with spray gun and hose spool. To be specified","confirmed, 1 safety shower with eye wash and 1 clean water hose with spray gun and hose spool in chemical area"]
[]
[{"$f":"A222+1","v":182},"Piping"]
[{"$f":"A224+1","v":183},"Piping material - chemicals",null,"To be specified","HDPE"]
[]
[{"$f":"A225+1","v":184},"Instrumentation"]
[{"$f":"A227+1","v":185},"Level switch",null,"To be supplied","confirmed"]
[{"$f":"A228+1","v":186},"Flow meter",null,"To be supplied","not confirmed"]
[187,"Weight system",null,"If used for dosing/consumption","not confirmed"]

{"sheet":"Anaerobic Unit","index":7,"n_rows":148,"n_cols":7,"rows_kept":148,"cut":false,"hidden":false,"merged":[]}
["Anaerobic Unit",null,null,null,null,"Front Page"]
["No.","Description","Units","AB InBev","Contractor","Notes","ABInBev Notes"]
[1,"Bio-process specification"]
[{"$f":"A3+1","v":2},"Neutalisation (correction) tank or stand pipe if applicable ","pcs",null,"not applicable","15ton COD to be traeted "]
[{"$f":"A4+1","v":3},"Minimum hydraulic retention Time","h","To be specified","not applicable"]
[{"$f":"A5+1","v":4},"Construction: Material",null,"To be specified","not applicable"]
[5,"Shape of tank",null,"To be specified","not applicable"]
[6,"Dimension of tank ","L/B/H or D/H","To be specified","not applicable"]
[7,"Net volume","m3","To be specified","not applicable"]
[8,"Gross volume","m3","To be specified","not applicable"]
[9,"Thickness of tank wall","mm","To be specified","not applicable"]
[10,"Coating of wall",null,"To be specified","not applicable"]
[11,"Coating of bottom",null,"To be specified","not applicable"]
[12,"Coating of top",null,"To be specified","not applicable"]
[13,"Top cover",null,"To be specified","not applicable"]
[14,"Manhole incl. safety switch",null,"To be specified","not applicable"]
[15,"Manhole diameter ","mm","To be specified","not applicable"]
[16,"Insulation material (if applicable based on ambient temperature)",null,"To be specified","not applicable"]
[17,"Insulation thickness ","mm","To be specified","not applicable"]
[18,"Cladding of insulated tank.",null,"To be specified","not applicable"]
[19,"External ladder to tank top or Common walkway for group of vessels",null,"To be specified","not applicable"]
[20,"Material of Ladder or Walkway",null,"To be specified","not applicable"]
[21,"Protection handrail of tank top",null,"To be specified","not applicable"]
[22,"Material of tank top handrail",null,"To be specified","not applicable"]
[23,"Overflow pipe ",null,"To be specified","not applicable"]
[24,"Odor removal ",null,"To be specified","not applicable"]
[25,"Vacuum-pressure protection",null,"To be specified","not applicable"]
[26,"By-pass facility to next process unit",null,"To be specified","not applicable"]
[27,"Anaerobic recirculation feed to correction tank min","m3/h","To be specified","not applicable"]
[28,"Anaerobic recirculation feed to correction tank max","m3/h","To be specified","not applicable"]
[]
[{"$f":"A30+1","v":29},"Anaerobic reactor feed  pumps","pcs","To be specified min one working and one back up","already included in datasheet EQ-Buffer - Storage"]
[{"$f":"A32+1","v":30},"Make",null,"To be specified","not applicable"]
[{"$f":"A33+1","v":31},"Type",null,"To be specified","not applicable"]
[32,"Capacity per pump","m3/h","To be specified","not applicable"]
[33,"Pumping head","Bar","To be specified","not applicable"]
[34,"Pump speed","rpm","To be specified","not applicable"]
[35,"Size of motor","Kw","To be specified","not applicable"]
[36,"Motor efficiency",null,"To be specified","not applicable"]
[37,"Frequency converter",null,"To be specified","not applicable"]
[38,"Impeller construction material",null,"To be specified","not applicable"]
[39,"Pump house material",null,"To be specified","not applicable"]
[40,"Flowmeter",null,"To be specified","not applicable"]
[41,"Pressure transmitter",null,"To be specified","not applicable"]
[42,"Pressure meter",null,"To be specified","not applicable"]
[43,"Sample valves make",null,"To be specified","not applicable"]
[44,"Sample valves material ",null,"To be specified","not applicable"]
[45,"Stop valve",null,"To be specified","not applicable"]
[]
[{"$f":"A48+1","v":46},"Instrumentation Neutralisation tank & anaerobic feed"]
[{"$f":"A50+1","v":47},"Tank level control HH,H,L,LL",null,"To be supplied","not applicable"]
[{"$f":"A51+1","v":48},"pH control ",null,"To be supplied","already included in datasheet EQ-Buffer - Storage"]
[49,"Temperature control",null,"To be supplied","already included in datasheet EQ-Buffer - Storage"]
[50,"Flow measurement",null,"To be supplied","already included in datasheet EQ-Buffer - Storage"]
[51,"VFA inline control (optional)",null,"To be specified","not confirmed"]
[52,"COD inline control (optional)",null,"To be specified","not confirmed"]
[53,"TSS inline control (optional)",null,"To be specified","already included in datasheet EQ-Buffer - Storage"]
[]
[{"$f":"A57+1","v":54},"Anaerobic reactor type ",null,"To be specified, UASB, EGSB, IC, DACS..","ANUBIX™-T by GWE (EGSB)"]
[{"$f":"A59+1","v":55},"Anaerobic reactor ","pcs","To be specified",1]
[{"$f":"A60+1","v":56},"Anaerobic active volume ","m3","To be specified",1030]
[57,"Anaerobic reactor surface ","m2","To be specified",1070]
[58,"Anaerobic volumteric loading rate","kgCOD/m3","To be specified",14.6]
[59,"Anaerobic capacity ","kgCOD ","To be specified","15000 kg COD/day"]
[60,"Up flow velocity ","m/h","To be specified",3]
[61,"Seed sludge delivery ","ton Volatile solids","To be specified","included"]
[62,"Seed sludge methanogen activity ","kgCOD/kgVS/day ","To be specified","to be confirmed"]
[63,"Bio gas generation","m3/kg COD removed","To be specified","0,3 Nm³ CH4/kg CODtot removed"]
[64,"Bio gas flow peak ","m3/h","To be specified",275]
[65,"Bio gas flow ","m3/day","To be specified",230]
[66,"Anaerobic reactor COD removal effciency ","%","85% 'To be specified","to be discussed, based on actual TSS concentration"]
[67,"Distribution loop flushing ",null,"To be specified ( automatic or manual)","manual"]
[68,"Construction: Material",null,"To be specified","Coated steel"]
[69,"Shape of tank",null,"To be specified","circular"]
[70,"Dimension of tank ","L/B/H or D/H","To be specified","10,1/13,3"]
[71,"Gross volume","m3","To be specified",1030]
[72,"Operating pressure","barg","To be specified","-0,005 - 0,03"]
[73,"Operating temperature","°C","To be specified","32< ... <40"]
[74,"Thickness of tank wall","mm","To be specified","To be confirmed during engineering"]
[75,"Coating of wall",null,"To be specified","Epoxy or glass"]
[76,"Coating of bottom",null,"To be specified","coating of concrete slab not required"]
[77,"Coating of top",null,"To be specified","not applicable"]
[78,"Top cover",null,"To be specified","stainless steel"]
[79,"Manhole incl. safety switch",null,"To be specified","Manhole without safety switch"]
[80,"Manhole diameter ","mm","To be specified",800]
[81,"Insulation material (if applicable based on ambient temperature)",null,"To be specified","Rockwool (option)"]
[82,"Insulation thickness ","mm","To be specified",50]
[83,"Cladding of insulated tank.",null,"To be specified","Included"]
[84,"External ladder to tank top or Common walkway for group of vessels",null,"To be specified","Included"]
[85,"Material of Ladder or Walkway",null,"To be specified","Galvanized steel"]
[86,"Protection handrail of tank top",null,"To be specified","Included"]
[87,"Material of tank top handrail",null,"To be specified","HDG steel"]
[88,"Odor removal ",null,"To be specified","Included"]
[89,"Vacuum-pressure protection",null,"To be specified","Breather valve"]
[90,"By-pass facility to next process unit",null,"To be specified","Confirmed"]
[91,"Sample valves make",null,"To be specified","Sodeco Valves"]
[92,"Sample valves material ",null,"To be specified","stainless steel"]
[]
[{"$f":"A97+1","v":93},"Anaerobic reactor instrumentation "]
[{"$f":"A99+1","v":94},"pH control ",null,"To be supplied ","confirmed"]
[{"$f":"A100+1","v":95},"Temperature control",null,"To be supplied ","confirmed"]
[96,"Biogas flow measurement ",null,"To be supplied ","confirmed"]
[97,"Gas domes and bio gas line fire and explosion controls",null,"To be supplied ATEX compliant -  'over pressure valves, flame arrestors ","breather valve"]
[98,"VFA inline control (optional)",null,"To be specified","not confirmed"]
[99,"COD inline control (optional)",null,"To be specified","not confirmed"]
[100,"Biomass inline solids control (optional)",null,"To be specified","confirmed"]
[101,"Anaerobic effluent inline TSS contriol (optional) ",null,"To be specified","not confirmed"]
[]
[{"$f":"A107+1","v":102},"Anaerobic reactor recirculation  pumps (if applicable)","pcs","To be specified","1 + 1 standby"]
[{"$f":"A109+1","v":103},"Make",null,"To be specified","KSB"]
[{"$f":"A110+1","v":104},"Type",null,"To be specified","centrifugal"]
[105,"Capacity per pump","m3/h","To be specified",235]
[106,"Pumping head","Bar","To be specified",0.6]
[107,"Pump speed","rpm","To be specified",2900]
[108,"Size of motor","Kw","To be specified",7.5]
[109,"Motor efficiency",null,"To be specified","IE3"]
[110,"Frequency converter",null,"To be specified","confirmed"]
[111,"Impeller construction material",null,"To be specified","stainless steel"]
[112,"Pump house material",null,"To be specified","cast iron"]
[113,"Flowmeter",null,"To be specified","confirmed"]
[114,"Pressure transmitter",null,"To be specified","not confirmed"]
[115,"Pressure meter",null,"To be specified","confirmed, 1 manometer per pump"]
[116,"Stop valve",null,"To be specified","confirmed"]
[]
[{"$f":"A123+1","v":117},"Anaerobic sludge pump","pcs",null,"not included"]
[{"$f":"A125+1","v":118},"Type",null,"To be specified","not included"]
[{"$f":"A126+1","v":119},"Capacity of pump","m3/h","To be specified","not included"]
[120,"Pumping head","bar","To be specified","not included"]
[121,"Pump Speed","rpm","To be specified","not included"]
[122,"Size of motor","kW","To be specified","not included"]
[123,"Frequency converter",null,"To be supplied","not included"]
[124,"Impeller construction material",null,"To be specified","not included"]
[125,"Pump house material",null,"To be specified","not included"]
[]
[null," "]
[{"$f":"A133+1","v":126},"Heating/cooling unit "]
[{"$f":"A136+1","v":127},"Type of Cooling/heating",null,"To be specified","wastewater temperature to be clarified"]
[{"$f":"A137+1","v":128},"Capacity ","kW","To be specified","wastewater temperature to be clarified"]
[129,"Efficiency","%","To be specified","wastewater temperature to be clarified"]
[]
[{"$f":"A139+1","v":130},"Storage tank for granular sludge",null,null,"not included"]
[{"$f":"A141+1","v":131},"Material of tank",null,"To be specified","not included"]
[{"$f":"A142+1","v":132},"Capacity of tank ","m3","To be specified","not included"]
[]
[{"$f":"A143+1","v":133},"Piping"]
[{"$f":"A145+1","v":134},"Piping material - Effluent ",null,"To be specified","HDPE"]
[{"$f":"A146+1","v":135},"Piping material - Biogas",null,"To be specified","stainless steel AISI 304"]
[136,"Piping material - Vent air",null,"To be specified","HDPE"]

{"sheet":"Biogas Treatment","index":8,"n_rows":102,"n_cols":7,"rows_kept":102,"cut":false,"hidden":false,"merged":[]}
["Biogas Treatment",null,null,null,null,"Front Page"]
["No.","Description","Units","AB InBev","Contractor","Notes","ABInBev Notes"]
[1,"PROCESS UNITS"]
[{"$f":"A3+1","v":2},"Peak  conc. of H2S in biogas","ppm","3500 ppm. To be specified","confirmed"]
[{"$f":"A4+1","v":3},"Max conc. of H2S in cleaned biogas","ppm","100 ppm. To be specified","confirmed"]
[{"$f":"A5+1","v":4},"Bio gas flow min","m3/h","To be specified","215 Nm³/h"]
[5,"Bio gas flow max","m3/h","To be specified","235 Nm³/h"]
[6,"Bio gas flow aver.","m3/h","To be specified","227 Nm³/h"]
[]
[{"$f":"A5+1","v":4},"Concrete platform foundation for equipment "]
[{"$f":"A10+1","v":5},"Dimension of platform","mm","To be specified","9000x9000 to be confirmed during engineering. Based on the site layout"]
[{"$f":"A11+1","v":6},"Quality of concrete",null,"To be specified","To be determined during engineering"]
[7,"Coating",null,"To be specified","not applicable"]
[8,"Other constructions",null,"To be specified","shed by civil contractor"]
[9,"Application of construction",null,"To be specified"]
[10,"Dimension of construction",null,"To be specified"]
[11,"Quality of concrete",null,"To be specified","To be determined during engineering"]
[12,"Coating ",null,"To be specified","not applicable"]
[null," "]
[{"$f":"A18+1","v":13},"Biogas processing unit"]
[{"$f":"A20+1","v":14},"Type of biogas processing ",null,"To be specified (biological, chemical, active carbon, combined)","BIO-SULFURIX™ by GWE + activated carbon"]
[{"$f":"A21+1","v":15},"Process units","pcs","To be specified","1 biological filter + 1 activated carbon filter on a rental base"]
[16,"Units  materials: Process tank",null,"To be specified","biological filter: GRP\nactivated carbon filter: stainless steel"]
[17,"Process unit dimensions ","L/B/H or D/H","To be specified","biological filter: 2,5 m/10 m\nactivated carbon filter: 2,3 m/1,6 m/1,5 m"]
[18,"Internal media material [Note: If any]",null,"To be specified"]
[19,"Active carbon ammount ( if applicable)","kg","To be specified","+/- 1000 "]
[20,"Active carbon regeneration ( if applicable)","times/year","To be specified","regeneration is done off site by supplier of rental unit; filter replacement 1 x/9 months"]
[21,"Active carbon consumption ( if applicable)","kg/year","To be specified","+/- 1300 kg/y based on 350 days/year operation"]
[22,"Causitic dosage (if applicable) ","m3/day","To be specified","not applicable"]
[23,"Causitic concentration (if applicable) ","%","To be specified","not applicable"]
[24,"Caustic regeneration unit (if applicable)",null,"To be specified","not applicable"]
[25,"Bio media incubator(if applicable)",null,"To be specified","not applicable"]
[26,"Bio media seed (if applicable)","unit/year","To be specified","not applicable"]
[27,"Nutrient dosage (if applicable)","unit/year","To be specified","biological filter: ca. 650 kg/year"]
[28,"Water usage ","m3/h","To be specified ( recommended final tretaed effluent to be used)","biological filter: ca. 0,12 m³/h"]
[29,"Type of cendensate well",null,"To be specified","not applicable"]
[30,"Effective volume of condensate well","L ","To be specified","not applicable"]
[]
[{"$f":"A37+1","v":31},"Processing unit recirculation pump (if applicable)","pcs",null,"1, as part of BIO-SULFURIX™ package unit"]
[{"$f":"A39+1","v":32},"Type",null,"To be specified","centrifugal, magnetic coupled"]
[{"$f":"A40+1","v":33},"Capacity of pump","m3/h","To be specified",20]
[34,"Pumping head","bar","To be specified",1.8]
[35,"Pump Speed","rpm","To be specified",2900]
[36,"Size of motor","kW","To be specified",2.2000000000000002]
[37,"Frequency converter",null,"To be supplied","not confirmed"]
[38,"Impeller construction material",null,"To be specified","PP"]
[39,"Pump house material",null,"To be specified","PP"]
[]
[{"$f":"A47+1","v":40},"Biogas Dryer"]
[{"$f":"A49+1","v":41},"Type of dryer",null,"To be specified","GASODRIX™ by GWE"]
[{"$f":"A50+1","v":42},"Numbers of dryers","pcs","To be specified",1]
[43,"Flow capacity","Nm3/h","To be specified",280]
[44,"Cooling capacity","KW","To be specified",9]
[]
[{"$f":"A53+1","v":45},"Biogas buffer/storage"]
[{"$f":"A55+1","v":46},"Type of biogas buffer",null,"To be specified","not applicable"]
[{"$f":"A56+1","v":47},"Buffer sheets on sides and roof [Note: If any]",null,"To be specified","not applicable"]
[48,"Material: Biogas buffer",null,"To be specified","not applicable"]
[49,"Buffer tank effective volume","m3","To be specified","not applicable"]
[50,"Design retention time of buffer tank","h","To be specified","not applicable"]
[51,"Operating pressure","mbar","To be specified","not applicable"]
[52,"Pressure/vacuum regulation",null,"To be specified","not applicable"]
[53,"Condensate drain facility",null,"To be specified","not applicable"]
[]
[{"$f":"A63+1","v":54},"Biogas flare"]
[{"$f":"A65+1","v":55},"Type of biogas Flare",null,"To be specified","shielded"]
[{"$f":"A66+1","v":56},"Maximum capacity of flare","m3/h","To be specified","54 Nm3/h"]
[57,"Minimum capacity of flare","m3/h","To be specified","270 Nm3/h"]
[58,"Ignition system",null,"To be specified","Automatic"]
[]
[{"$f":"A69+1","v":59},"Gas pump for biogas (supply to energy utility)","pcs",null,1]
[{"$f":"A71+1","v":60},"Type",null,"To be specified","side channel blower"]
[{"$f":"A72+1","v":61},"Capacity of pump","m3/h","To be specified","260 Nm³/h"]
[62,"Pumping head","bar","To be specified",0.22]
[63,"Pump Speed","rpm","To be specified",3200]
[64,"Size of motor","kW","To be specified",5.5]
[65,"Frequency converter",null,"To be supplied","confirmed"]
[66,"Impeller construction material",null,"To be specified","aluminum alloy"]
[67,"Pump house material",null,"To be specified","aluminum alloy"]
[{"$f":"A79+1","v":68},"Lifting equipment",null,"To be specified","not applicable"]
[69,"Working pressure ","bar","To be specified",0.22]
[]
[{"$f":"A81+1","v":70},"Other Equipment"]
[{"$f":"A83+1","v":71},"Purpose and application",null,"To be specified","biogas demister on biogas collector"]
[]
[{"$f":"A84+1","v":72},"Piping"]
[{"$f":"A86+1","v":73},"Piping material - biogas",null,"To be specified","stainless steel AISI 304 + HDPE"]
[{"$f":"A87+1","v":74},"Piping material - water/liquids",null,"To be specified","HDPE"]
[75,"Piping material - chemicals",null,"To be specified","HDPE"]
[]
[{"$f":"A89+1","v":76},"Instrumentation"]
[{"$f":"A91+1","v":77},"Level switch",null,"To be supplied","confirmed, as part of BIO-SULFURIX™ package unit"]
[{"$f":"A92+1","v":78},"pH Transmitter",null,"To be supplied","not applicable"]
[79,"Temperature transmitter",null,"To be supplied","confirmed"]
[80,"Bio gas processing fire and explosion controls",null,"To be supplied ATEX compliant -  'over pressure valves, flame arrestors ","confirmed"]
[81,"Pressure transmitter",null,"To be supplied","confirmed"]
[82,"Flow meter (water)",null,"To be supplied","not confirmed"]
[83,"Flow meter (Biogas)",null,"To be specified","confirmed"]
[84,"Flow meter (Chemcials)",null,"To be specified","not applicable"]
[85,"Biogas analyser (inlet outlet)",null,"To be specified","confirmed, 2 sample points (after biogas dryer and after activated carbon filter)"]
[86,"Biogas analyser. Parameters to analyse",null,"H2S","confirmed, including CH4 measurement"]
[87,"Other instruments. Appplication, type and brand",null,"To be specified","not applicable"]

{"sheet":"Aerobic Unit ","index":9,"n_rows":182,"n_cols":7,"rows_kept":182,"cut":false,"hidden":false,"merged":[]}
["Aerobic Unit ",null,null,null,null,"Front Page"]
["No.","Description","Units","AB InBev","Contractor","Notes","ABInBev Notes"]
[1,"Bio-process specification"]
[{"$f":"A3+1","v":2},"Type of aerobic treatment ",null,"To be specified ( CAS, SBR, MBR","post-aeration"]
[{"$f":"A4+1","v":3},"Number of bio-reactors","pcs.","To be specified",1]
[]
[{"$f":"A5+1","v":4},"Bio rector technology specifications (describe per unit)"]
[{"$f":"A6+1","v":1},"Retention time ","h","To be specified ",1]
[5,"Active aeration volume ","m3","To be specified",125]
[2,"Volumetric loading rate ","kgCOD/m3/d","To be specified","not applicable"]
[6,"Food Mass Ratio","kgCOD/kgMLSS/d","To be specified","not applicable"]
[3,"MLSS concentration","kg/m3","To be specified","not applicable"]
[7,"MLSS mass","kg","To be specified","not applicable"]
[4,"Sludge age ","days","To be specified","not applicable"]
[8,"Type of aerator selected ",null,"To be specified ( Surface, submerged diffusers, ject aeration..)","submerged diffusers"]
[5,"Design oxygen concentration for aeration phase","ppm","To be specified","2 (for design of aeration capacity)"]
[9,"Endogene respiration","kgO2/h","To be specified","not applicable"]
[6,"Exogene respiration","kgO2/h","To be specified","not applicable"]
[10,"Nitrification respiration","kgO2/h","To be specified","not applicable"]
[7,"Denitrification respiration","kgO2/h","To be specified","not applicable"]
[11,"Total respiration (AOR)","kgO2/h","To be specified",21.1]
[8,"SOTE Standard Oxygen Transfer Efficiency","%","To be specified",28.4]
[12,"SOTR Standard Oxygen Transfer Rate","kgO2/h","To be specified",45.5]
[9,"Aerator efficiency","kgO2/kW","To be specified",3]
[13,"Aerator capacity needed","kW","To be specified",{"$f":"E23/E24","v":15.166666666666666}]
[10,"Aerator capacity slected","kW","To be specified",22]
[14,"Anoxic volume ","m3","To be specified","not applicable"]
[11,"Design COD:N:P ratio",null,"To be specified","not applicable"]
[15,"Min. COD needed for Nitrogen removal ","kg/day","To be specified","not applicable"]
[12,"Sedimentation volume ","m3","To be specified","not applicable"]
[16,"Sedimentation surface","m2","To be specified","not applicable"]
[13,"Settling velocity ","m/h","To be specified","not applicable"]
[17,"Sedimentation surface loading rate ","kgTSS/m2/h","To be specified","not applicable"]
[14,"RAS/WAS sludge concentration ","kg/m3","To be specified","not applicable"]
[18,"RAS sludge flow ( if applicable)","m3/h","To be specified","not applicable"]
[15,"MBR 'Membrane types (if applicable)",null,"To be specified","not applicable"]
[19,"MBR 'Membrane material (if applicable)",null,"To be specified","not applicable"]
[16,"MBR flux ","LMH","To be specified","not applicable"]
[{"$f":"A36+1","v":16},"Pore size of membranes (if applicable)","micron","To be specified","not applicable"]
[{"$f":"A37+1","v":20},"Number of membrane units (if applicable)","pcs","To be specified","not applicable"]
[17,"Total membrane surface (if applicable)","m2","To be specified","not applicable"]
[21,"CIP system, type and chemicals to use (if applicable)",null,"To be specified","not applicable"]
[]
[{"$f":"A42+1","v":22},"Bio rector construction data (describe per unit)"]
[{"$f":"A44+1","v":23},"Construction: Material",null,"To be specified","Coated steel"]
[{"$f":"A44+1","v":23},"Shape of tank",null,"To be specified","circular"]
[24,"Dimension of tank ","L/B/H or D/H","To be specified","5,5/6,1"]
[24,"Gross volume","m3","To be specified",140]
[{"$f":"A48+1","v":25},"Operating temperature","°C","To be specified","effluent temperature of anaerobic unit"]
[{"$f":"A49+1","v":26},"Thickness of tank wall","mm","To be specified","To be confirmed during engineering"]
[27,"Coating of wall",null,"To be specified","Epoxy or glass"]
[28,"Coating of bottom",null,"To be specified","coating of concrete slab not required"]
[29,"Manhole diameter ","mm","To be specified",800]
[30,"Insulation material (if applicable based on ambient temperature)",null,"To be specified","not applicable"]
[31,"Insulation thickness ","mm","To be specified","not applicable"]
[32,"Cladding of insulated tank.",null,"To be specified","not applicable"]
[33,"External ladder to tank top or Common walkway for group of vessels",null,"To be specified","Included"]
[34,"Material of Ladder or Walkway",null,"To be specified","Galvanized steel"]
[35,"Protection handrail of tank top",null,"To be specified","no peripheral handrailing, only on working platform"]
[36,"Material of tank top handrail",null,"To be specified"]
[37,"By-pass facility to next process unit",null,"To be specified","confirmed"]
[38,"Sample valves make",null,"To be specified","Sodeco Valves"]
[39,"Sample valves material ",null,"To be specified","stainless steel"]
[40,"Manhole diameter ","mm","To be specified",800]
[41,"Quality of concrete",null,"To be specified","specified during engineering"]
[42,"Coating of wall",null,"To be specified"]
[43,"Coating of bottom",null,"To be specified","coating of concrete slab not required"]
[44,"Coating of top",null,"To be specified","not applicable"]
[45,"By-pass facility to next process unit",null,"To be specified","confirmed"]
[46,"Insulation",null,"To be specified","not applicable"]
[47,"Insulation material",null,"To be specified","not applicable"]
[48,"Insulation thickness",null,"To be specified","not applicable"]
[49,"Cladding of insulated tank.",null,"To be specified","not applicable"]
[]
[]
[{"$f":"A73+1","v":50},"Recirculation pump (if applicable)","pcs",null,"not applicable"]
[{"$f":"A76+1","v":51},"Type",null,"To be specified","not applicable"]
[{"$f":"A77+1","v":52},"Capacity of pump","m3/h","To be specified","not applicable"]
[53,"Pumping head","bar","To be specified","not applicable"]
[54,"Pump Speed","rpm","To be specified","not applicable"]
[55,"Size of motor","kW","To be specified","not applicable"]
[56,"Frequency converter",null,"To be supplied","not applicable"]
[57,"Impeller construction material",null,"To be specified","not applicable"]
[58,"Pump house material",null,"To be specified","not applicable"]
[59,"Lifting equipment",null,"To be specified","not applicable"]
[]
[{"$f":"A85+1","v":60},"Surplus sludge pump","pcs",null,"not applicable"]
[{"$f":"A87+1","v":61},"Type",null,"To be specified","not applicable"]
[{"$f":"A88+1","v":62},"Capacity of pump","m3/h","To be specified","not applicable"]
[63,"Pumping head","bar","To be specified","not applicable"]
[64,"Pump Speed","rpm","To be specified","not applicable"]
[65,"Size of motor","kW","To be specified","not applicable"]
[66,"Frequency converter",null,"To be supplied","not applicable"]
[67,"Impeller construction material",null,"To be specified","not applicable"]
[68,"Pump house material",null,"To be specified","not applicable"]
[69,"Lifting equipment",null,"To be specified","not applicable"]
[]
[{"$f":"A96+1","v":70},"Agitators",null,null,"not applicable"]
[{"$f":"A98+1","v":71},"Type",null,"To be specified","not applicable"]
[{"$f":"A99+1","v":72},"Material",null,"To be specified","not applicable"]
[73,"Design of blades",null,"To be specified","not applicable"]
[74,"Mount of agitator",null,"Top/side/bottom. To be specified","not applicable"]
[75,"Diameter of agitator ","mm","To be specified","not applicable"]
[76,"Motor size for agitator","kW","To be specified","not applicable"]
[77,"Frequency converter",null,"To be specified","not applicable"]
[78,"Max. Power consumption","W/m3 ","3 W/m3. To be specified","not applicable"]
[79,"Speed controlle range","rpm","To be specified","not applicable"]
[80,"Maintenance",null,"To be specified","not applicable"]
[]
[{"$f":"A108+1","v":81},"Aeration equipment"]
[{"$f":"A110+1","v":82},"1. Blower & submerged diffusor system"]
[{"$f":"A111+1","v":83},"Air blower, numbers","pcs","To be specified","1 + 1 standby"]
[84,"Airblower, type and brand",null,"To be specified","positive displacement blower, Aerzen"]
[85,"Air blower, capacity","Nm3/h","To be specified",600]
[86,"Air blower, power","kW","To be specified",22]
[87,"Air blower, VSD",null,"To be supplied","not confirmed"]
[88,"Aerator diffusers, type and brand",null,"To be specified","plate diffusers, Supratec"]
[89,"Aerator diffusers, material of pipes",null,"To be specified","HDPE"]
[90,"Aerator diffusers, material of diffuser",null,"To be specified","Glass reinforced PP body, perforated EPDM rubber membrane"]
[91,"Facility for maintenance of diffuser system",null,"To be specified","not applicable"]
[92,"2. Surface aerator system"]
[93,"Surface aerators, numbers","pcs","To be specified","not applicable"]
[94,"Surface aerators, type and brand",null,"To be specified","not applicable"]
[95,"Surface aerator, capacity","m3/h","To be specified","not applicable"]
[96,"Surface aerator. Power ","kW","To be specified","not applicable"]
[97,"Surface aerator. VSD",null,"to be supplied","not applicable"]
[98,"Facility for maintenance of aeration system",null,"To be specified","not applicable"]
[]
[{"$f":"A127+1","v":99},"Settler equipment",null,null,"not applicable"]
[{"$f":"A129+1","v":100},"Bottom scraber, material of steel and scraber",null,"To be specified","not applicable"]
[{"$f":"A130+1","v":101},"Overflow weirs, material",null,"To be specified","not applicable"]
[102,"Floating sludge removal, surface scraber",null,"To be specified","not applicable"]
[]
[{"$f":"A132+1","v":103},"Other Equipment"]
[{"$f":"A134+1","v":104},"Overflow facility to next process unit",null,"To be specified","not applicable"]
[{"$f":"A135+1","v":105},"External ladder to tank top or common walkway for group of tanks",null,"To be specified","not applicable"]
[]
[{"$f":"A136+1","v":106},"Aerobic unit feed pump (if applicable)","pcs",null,"not applicable"]
[{"$f":"A138+1","v":107},"Type",null,"To be specified","not applicable"]
[{"$f":"A139+1","v":108},"Capacity of pump","m3/h","To be specified","not applicable"]
[109,"Pumping head","bar","To be specified","not applicable"]
[110,"Pump Speed","rpm","To be specified","not applicable"]
[111,"Size of motor","kW","To be specified","not applicable"]
[112,"Frequency converter",null,"To be supplied","not applicable"]
[113,"Impeller construction material",null,"To be specified","not applicable"]
[114,"Pump house material",null,"To be specified","not applicable"]
[{"$f":"A146+1","v":115},"Lifting equipment",null,"To be specified","not applicable"]
[]
[{"$f":"A147+1","v":116},"Surplus sludge pump (if applicable)","pcs",null,"not applicable"]
[{"$f":"A149+1","v":117},"Type",null,"To be specified","not applicable"]
[{"$f":"A150+1","v":118},"Capacity of pump","m3/h","To be specified","not applicable"]
[119,"Pumping head","bar","To be specified","not applicable"]
[120,"Pump Speed","rpm","To be specified","not applicable"]
[121,"Size of motor","kW","To be specified","not applicable"]
[122,"Frequency converter",null,"To be supplied","not applicable"]
[123,"Impeller construction material",null,"To be specified","not applicable"]
[124,"Pump house material",null,"To be specified","not applicable"]
[{"$f":"A157+1","v":125},"Lifting equipment",null,"To be specified","not applicable"]
[]
[{"$f":"A158+1","v":126},"Piping"]
[{"$f":"A160+1","v":127},"Piping material - Waste Water",null,"To be specified","HDPE"]
[{"$f":"A161+1","v":128},"Piping material - Air",null,"To be specified","Stainless steel AISI 304"]
[]
[{"$f":"A162+1","v":129},"Instrumentation"]
[{"$f":"A164+1","v":130},"Level switch",null,"To be supplied","not confirmed"]
[{"$f":"A165+1","v":131},"pH transmitter",null,"To be supplied","not confirmed"]
[132,"Temperature transmitter",null,"To be supplied","not confirmed"]
[133,"Inline O2 control",null,"To be supplied","not confirmed"]
[134,"Flow measurement RAS",null,"To be supplied","not confirmed"]
[135,"Flow measurement WAS",null,"To be supplied","not confirmed"]
[136,"Inline MLSS, RAS&WAS concentration (optional)",null,"To be specified","not confirmed"]
[137,"Inline Nitorgen control (optional)",null,"To be specified","not confirmed"]
[138,"Inline Phosphor control (optional)",null,"To be specified","not confirmed"]
[139,"Inline COD control (optional)",null,"To be specified","not confirmed"]
[140,"Inlne TSS control (optional)",null,"To be supplied","not confirmed"]
[]
[{"$f":"A175+1","v":141},"Final Polishing  ( If applicable)",null,null,"not applicable"]
[{"$f":"A177+1","v":142},"Final polishing equipment type","type","To be specified","not applicable"]
[{"$f":"A178+1","v":143},"Final polishing equipment cpacity","m3/h",null,"not applicable"]
[144,"Final polishing equipment cpacity solids feed","mg/l",null,"not applicable"]
[145,"Final polishing equipment cpacity reject rate ","m3/h",null,"not applicable"]
[146,"Final polishing equipment outlet performance on solids","mg/l","To be specified","not applicable"]

{"sheet":"Outlet","index":10,"n_rows":27,"n_cols":7,"rows_kept":27,"cut":false,"hidden":false,"merged":[]}
["Outlet Station",null,null,null,null,"Front Page"]
["No.","Description","Units","AB InBev","Contractor","Notes","ABInBev Notes"]
[1,"Concrete outlet tank"]
[{"$f":"A3+1","v":2},"Shape of tank. - Circular",null,"To be specified","not applicable"]
[{"$f":"A4+1","v":3},"Minimum hydraulic retention Time",null,"To be specified","not applicable"]
[4,"Dimension of tank ","L/B/H or D/H","To be specified","not applicable"]
[5,"Gross volume","m3","To be specified","not applicable"]
[6,"Thickness of tank wall","mm","To be specified","not applicable"]
[7,"Quality of concrete",null,"To be specified","not applicable"]
[8,"Coating of wall",null,"To be specified","not applicable"]
[9,"Coating of bottom",null,"To be specified","not applicable"]
[]
[{"$f":"A11+1","v":10},"Piping"]
[{"$f":"A13+1","v":11},"Piping material - Waste Water",null,"To be specified","HDPE"]
[]
[{"$f":"A14+1","v":12},"Instrumentation"]
[{"$f":"A16+1","v":13},"Level switch",null,"To be supplied","not confirmed"]
[{"$f":"A17+1","v":14},"Flow transmitter",null,"To be supplied","confirmed"]
[15,"pH Transmitter",null,"To be supplied","confirmed"]
[16,"Temperature transmitter",null,"To be supplied","confirmed, via pH measurement"]
[17,"Redox transmitter",null,"To be supplied","not confirmed"]
[18,"Conductivity transmitter",null,"To be supplied","not confirmed"]
[{"$f":"A22+1","v":19},"Inline Nitorgen control (optional)",null,"To be specified","not applicable"]
[20,"Inline Phosphor control (optional)",null,"To be specified","not applicable"]
[21,"Inline COD control (optional)",null,"To be specified","not applicable"]
[22,"Inlne TSS control (optional)",null,"To be specified","confirmed"]
[23,"Automatic sampler",null,"To be specified","not confirmed"]

{"sheet":"Odour Control","index":11,"n_rows":76,"n_cols":7,"rows_kept":76,"cut":false,"hidden":false,"merged":[]}
["Odour Control",null,null,null,null,"Front Page"]
["No.","Description","Units","AB InBev","Contractor","Notes","ABInBev Notes"]
[1,"Off gas suction sites"]
[{"$f":"A3+1","v":2},"Inlet tank","m3/h","To be specified",0]
[{"$f":"A4+1","v":3},"Equalization tank","m3/h","To be specified",260]
[4,"Calamity tank","m3/h","To be specified",180]
[5,"Anaerobic reactor(s)","m3/h","To be specified",140]
[6,"Sludge storage tank","m3/h","To be specified","not applicable"]
[7,"Sludge dewatering facility","m3/h","To be specified","not applicable"]
[8,"Other facilities","m3/h","To be specified","640 (post aeration)"]
[9,"Total Air flow to treatment","m3/h","To be specified",{"$f":"E5+E6+E7+640","v":1220}]
[]
[{"$f":"A11+1","v":10},"Unit process specification"]
[{"$f":"A13+1","v":11},"Separate off gas treatment",null,null," "]
[{"$f":"A14+1","v":12},"General process discription",null,"To be specified","not applicable"]
[]
[{"$f":"A15+1","v":13},"Combined off gas treatment"]
[14,"General process discription",null,"To be specified","biofilter on vent air and outlet post aeration tank"]
[]
[{"$f":"A18+1","v":15},"Concrete platform foundation for equipment  [Note: If required]"]
[16,"Dimension of platform","L x W","To be specified","ca. 7,8 x 2,65 m + plinth for fan"]
[17,"Quality of concrete",null,"To be specified","specified during engineering"]
[18,"Coating",null,"To be specified","not applicable"]
[19,"Other constructions",null,"To be specified","not applicable"]
[20,"Application of construction",null,"To be specified","not applicable"]
[21,"Dimension of construction",null,"To be specified","not applicable"]
[22,"Quality of concrete",null,"To be specified","not applicable"]
[23,"Coating ",null,"To be specified","not applicable"]
[null," "]
[{"$f":"A28+1","v":24},"Off gas blowers"]
[{"$f":"A30+1","v":25},"Design capacity of flow","m3/h","To be specified",1500]
[{"$f":"A31+1","v":26},"Type of pumps",null,"To be specified","radial fan"]
[27,"Number of pumps",null,"To be specified",1]
[28,"Capacity of pump","m3/h","To be specified",1500]
[29,"Pumping head","bar","To be specified",2.5000000000000001E-2]
[30,"Pump speed","rpm","To be specified",2900]
[31,"Size of motor","kW","To be specified",3]
[32,"Frequency converter",null,"To be supplied","confirmed"]
[33,"Impeller construction material",null,"To be specified","PPs/PP-FR"]
[34,"Pump house material",null,"To be specified","Pes/PE-FR"]
[35,"Installation position",null,"To be specified","next to biofilter"]
[]
[{"$f":"A41+1","v":36},"Injection system - off gas to aero tank prefeered "]
[{"$f":"A43+1","v":37},"Aeration system. Submerged or injector",null,"To be specified","not applicable"]
[{"$f":"A44+1","v":38},"Aerator diffusers, type and brand",null,"To be specified","not applicable"]
[39,"Aerator diffusers, material of pipes",null,"To be specified","not applicable"]
[40,"Aerator diffusers, material of diffuser",null,"To be specified","not applicable"]
[41,"Facility for maintenance of diffuser system",null,"To be specified","not applicable"]
[42,"Injector, type and brand",null,"To be specified","not applicable"]
[]
[{"$f":"A49+1","v":43},"Alternative odor processing unit"]
[{"$f":"A51+1","v":44},"Type of odor processing ",null,"To be specified (biological, chemical, active carbon, combined)","biofilter with moistening chamber"]
[{"$f":"A52+1","v":45},"Process units","pcs","To be specified",1]
[46,"Units  materials: Process tank",null,"To be specified","HDPE"]
[47,"Process unit dimensions ","L/B/H or D/H","To be specified","6,7 m/2,2 m/1,6 m"]
[48,"Internal media material [Note: If any]",null,"To be specified","wood chips, limestone powder"]
[49,"Active carbon ammount ( if applicable)","kg","To be specified","not applicable"]
[50,"Active carbon regeneration ( if applicable)","times/year","To be specified","not applicable"]
[51,"Active carbon consumption ( if applicable)","kg/year","To be specified","not applicable"]
[52,"Causitic dosage (if applicable) ","m3/day","To be specified","not applicable"]
[53,"Causitic concentration (if applicable) ","%","To be specified","not applicable"]
[54,"Caustic regeneration unit (if applicable)",null,"To be specified","not applicable"]
[55,"Bio media incubator(if applicable)",null,"To be specified","not applicable"]
[56,"Bio media seed (if applicable)","unit/year","To be specified","not applicable"]
[57,"Nutrient dosage (if applicable)","unit/year","To be specified","not applicable"]
[58,"Water usage ","m3/h","To be specified ( recommended final tretaed effluent to be used)","depending on water evaporation rate"]
[]
[{"$f":"A66+1","v":59},"Processing unit recirculation pump (if applicable)","pcs"]
[{"$f":"A68+1","v":60},"Type",null,"To be specified","vertical in-line low pressure pump"]
[{"$f":"A69+1","v":61},"Capacity of pump","m3/h","To be specified",8.5]
[62,"Pumping head","bar","To be specified",1]
[63,"Pump Speed","rpm","To be specified",2900]
[64,"Size of motor","kW","To be specified",1.5]
[65,"Frequency converter",null,"To be supplied","not confirmed"]
[66,"Impeller construction material",null,"To be specified","stainless steel"]
[67,"Pump house material",null,"To be specified","cast iron"]

{"sheet":"Laboratory equipment","index":12,"n_rows":45,"n_cols":7,"rows_kept":45,"cut":false,"hidden":false,"merged":[]}
["Laboratory Equipment & Furnitures",null,null,null,null,"Front Page"]
["No.","Description","Units","AB InBev","Contractor","Notes","ABInBev Notes"]
[1,"Laboratory equipment"]
[{"$f":"A3+1","v":2},"Portable dissolved oxygen meter (DO), 2 spare electrodes, cable, buffer solution and accessories (robust quality for field-use);",null,"To be specified","Not required for proposed installation"]
[{"$f":"A4+1","v":3},"Minimum hydraulic retention Time",null,"To be specified","Not required for proposed installation"]
[4,"Utility oven with temperature range 30 - 200˚ C, volume 28 litres;",null,"To be specified","Confirmed"]
[5,"Analytical balance, weighing capacity 80 gram, readability 0.0001 gram;",null,"To be specified","Confirmed"]
[6,"Imhoff cone (1 litre) with stand (5);",null,"To be specified","Confirmed"]
[7,"Desiccators for 12 evaporating dishes (1);",null,"To be specified","Confirmed"]
[8,"Buchner funnel (2) with 2 boxes S&S glass fibre filters ",null,"To be specified","Confirmed; the full set-up with a portable vacuum pump and erlenmeyer flask with side connection."]
[9,"Timer with audible alarm;",null,"To be specified","Not required, timer included in spectrophotometer."]
[10,"Latex gloves, 100 pieces per package (5);",null,"To be specified","Confirmed"]
[11,"Set of safety glasses (6);",null,"To be specified","Confirmed"]
[12,"Laboratory coats (6);",null,"To be specified","Confirmed"]
[13,"Crucible tongs (3);",null,"To be specified","Confirmed"]
[14,"Stand including clamps (3);",null,"To be specified","Not required for proposed installation"]
[15,"Vial / tube rack;",null,"To be specified","Confirmed"]
[16,"Rubber tubing (20 meters);",null,"To be specified","Confirmed"]
[17,"Magnetic stirrers (6);",null,"To be specified","Not required for proposed installation"]
[18,"Glass tubes 6x60, 6x200 mm (6 of each);",null,"To be specified","Not required for proposed installation"]
[19,"Grab samplers (2);",null,"To be specified","Confirmed"]
[20,"Water bath (1);",null,"To be specified","Not required for proposed installation"]
[21,"Erlenmeyer flasks with fitting rubber stopper, 1,000 and 500 ml (12 of each);",null,"To be specified","3 of each"]
[22,"Evaporating dishes 50 ml (12);",null,"To be specified","Confirmed"]
[23,"Crucibles 50 ml (12);",null,"To be specified","Confirmed"]
[24,"100 ml separator funnel (12);",null,"To be specified","Not required for proposed installation"]
[25,"Weighing dishes 100 ml (12);",null,"To be specified","Confirmed"]
[26,"Beaker glasses 50 ml (10 of each)",null,"To be specified","Confirmed"]
[27,"Spectrophotometer brand Hach-Lange, or equivalent;",null,"To be specified","Confirmed"]
[28,"COD, T-N and T-P measurement using prepared vials (eg. Hach-Lange, 600 vials for COD, T-N and T-P), in applicable ranges, including all accessories and reagents;",null,"To be specified","Confirmed"]
[29,"Heating / destruction block for Hach-Lange vials.",null,"To be specified","Confirmed"]
[30,"Portable pH/temperature meter, 2 spare electrodes, including laboratory docking station, electrode stand, cable, buffer solution (1 litre each of pH 4 and 7 and 10) and accessories (robust quality for combined use in laboratory and field);",null,"To be specified","Confirmed"]
[31,"VFA/TIC titrator. E.g. Hach-Lange",null,"To be specified","VFA analysis is done using colorimetry."]
[32,"Volumetric pipettes 1, 5, 10 and 25 ml (6 of each);",null,"To be specified","Not required for proposed installation"]
[33,"Measuring pipettes 2 and 10 ml (6 of each);",null,"To be specified","Confirmed"]
[34,"Pipetting balloons (2);",null,"To be specified","Confirmed"]
[35,"Beaker glasses 250 and 100 ml (10 of each);",null,"To be specified","Confirmed"]
[36,"Graduated metric cylinder, 1,000, 500, 250, 100 and 50 ml (2 of each);",null,"To be specified","Confirmed"]
[37,"Funnel 125 and 75 mm, PP (5 of each);",null,"To be specified","Confirmed"]
[38,"Automatic pipette 1-5 ml, including 1,000 disposable tips (1).",null,"To be specified","Confirmed; 2 measureing sizes"]
[39,"All included reagents, test tubes or other consumables sufficient for a half year of operation should be supplied.",null,"To be specified","Confirmed"]
[]
[{"$f":"A41+1","v":40},"Furniture",null,"To be specified"]
[{"$f":"A43+1","v":41},"Laboratory workbench with sink and tap, cupboards;",null,"To be specified","Confirmed"]
[{"$f":"A44+1","v":42},"Complete fume cupboard with exhaust hood, sink and tap;",null,"To be specified","Confirmed"]

{"sheet":"Civil work & Buildings","index":13,"n_rows":32,"n_cols":7,"rows_kept":32,"cut":false,"hidden":false,"merged":[]}
["Civil Work & Buildings",null,null,null,null,"Front Page"]
["No.","Description","Units","AB InBev","Contractor","Notes","ABInBev Notes"]
[1,"Technical buildings"]
[{"$f":"A3+1","v":2},"Design of technical facilities",null,"1 technical building/facilities scattered. To be specified","supply of civil guidelines only"]
[null,"Minimum hydraulic retention Time",null,null,"not applicable"]
[{"$f":"A4+1","v":3},"Constructions"]
[{"$f":"A6+1","v":4},"Construction Material ",null,"To be specified","to be discussed"]
[]
[{"$f":"A7+1","v":5},"Facilities and place"]
[{"$f":"A9+1","v":6},"Room for Sludge Dewatering Unit","m2","Application, facilities and area. To be specified","not applicable"]
[{"$f":"A10+1","v":7},"Electrical room","m2","Application, facilities and area. To be specified","ca. 20"]
[8,"Room for installation of RWS","m2","Application, facilities and area. To be specified","to be clarified"]
[9,"Operator room - Process controle","m2","Application, facilities and area. To be specified","ca. 20"]
[10,"Room for chemical storage","m2","Application, facilities and area. To be specified","ca. 35"]
[11,"Laboratory","m2","Application, facilities and area. To be specified","ca. 20"]
[12,"Toilets","m2","Application, facilities and area. To be specified","can be included if wanted"]
[13,"Office","m2","Application, facilities and area. To be specified","can be included if wanted"]
[14,"Room for containers (dewatered sludge)","m2","Application, facilities and area. To be specified","not applicable"]
[15,"Work shop","m2","Application, facilities and area. To be specified","can be included if wanted"]
[16,"Room 1","m2","Application, facilities and area. To be specified","can be included if wanted"]
[17,"Room 2","m2","Application, facilities and area. To be specified","can be included if wanted"]
[18,"Air Condition",null,"Application, facilities and area. To be specified","by civil contractor"]
[]
[{"$f":"A22+1","v":19},"Piping"]
[{"$f":"A24+1","v":20},"Piping material - Water",null,"To be specified","HDPE"]
[{"$f":"A25+1","v":21},"Piping material - Ventilation air",null,"To be specified","by civil contractor"]
[]
[{"$f":"A26+1","v":22},"OTHER CIVIL WORK"]
[{"$f":"A28+1","v":23},"Internal roads",null,"To be specified","by civil contractor"]
[{"$f":"A29+1","v":24},"Landscaping",null,"To be specified","by civil contractor"]
[25,"Fence boundering the site",null,"To be specified","by civil contractor"]
[26,"Gate(s)",null,"To be specified","by civil contractor"]

{"sheet":"Piping and Insulation","index":14,"n_rows":14,"n_cols":6,"rows_kept":14,"cut":false,"hidden":false,"merged":[]}
["Piping and Insulation",null,null,null,null,"Front Page"]
["No.","Description","Units","AB InBev","Contractor","Notes"]
[1,"All interconnecting pipe works including  utility",null,"To be supplied","confirmed, as per battery limits specified in our proposal"]
[2,"All vent piping to free air.",null,"To be supplied","confirmed"]
[3,"Minimum hydraulic retention Time",null,"To be supplied","to be clarified"]
[4,"Insulation of piping, according to specification.",null,"To be supplied","to be discussed"]
[5,"Insulation of all equipment, Valves, Flanges, In-line equipment, etc. according to specification.",null,"To be supplied","to be discussed"]
[null," "]
[6,"Piping "]
[7,"Piping material according to specification",null,"To be supplied","confirmed, as per materials and battery limits specified in our proposal"]
[]
[8,"Insulation"]
[9,"Insulation material for hot piping",null,"Mineral Wool","not applicable"]
[10,"Insulation material for cold piping",null,"PUR [Note: or] PIR [Note: or] Foamglas [Note: or] Armaflex","mineral wool + aluminum cladding"]

{"sheet":"Pipe Bridges and Support","index":15,"n_rows":28,"n_cols":7,"rows_kept":28,"cut":false,"hidden":false,"merged":[]}
["Pipe Bridges and Support",null,null,null,null,null,"Front Page"]
["No.","Component",null,"Required Makes","Type","Contractor","Notes"]
[1,"All pipe bridges, inside the working areas",null,"To be supplied",null,"not applicable"]
[2,"All supports for piping (individual supports and entire structure), inside the working areas",null,"To be supplied",null,"confirmed"]
[null,"Minimum hydraulic retention Time"]
[3,"Pipe Bridge, main",null,"Section deleted if supplied by others",null,"not applicable"]
[4,"Constructions Material",null,"Galvanized mild steel  [Note: or] Stainless Steel ",null,"not applicable"]
[5,"Constructions Material, piping support",null,"Stainless Steel",null,"not applicable"]
[6,"Type",null,"To be specified",null,"not applicable"]
[7,"Supported by",null,"Floor [Note: or] Structures [Note: or] Building",null,"not applicable"]
[8,"Free space for future piping","%",25,null,"not applicable"]
[9,"Free space underneath pipe bridge","mm","3000 [Note: or, if outside] 4500",null,"not applicable"]
[10,"Distance between two pipe deck levels","mm","1000 - 1200",null,"not applicable"]
[]
[11,"Local Pipe Bridges",null,null,null,"not applicable"]
[12,"Constructions Material",null,"Stainless Steel [Note: or] Galvanized mild steel ",null,"not applicable"]
[13,"Type",null,"To be specified",null,"not applicable"]
[14,"Supported by",null,"Floor [Note: or] Structures [Note: or] Building",null,"not applicable"]
[15,"Free space for future piping","%",25,null,"not applicable"]
[16,"Free space underneath pipe bridge","mm","3000 [Note: or, if outside] 4500",null,"not applicable"]
[17,"Distance between two pipe deck levels","mm","1000 - 1200",null,"not applicable"]
[]
[18,"Local Pipe support"]
[19,"Constructions Material",null,"Stainless Steel [Note: or] Galvanized mild steel ",null,"carbon steel and partially in stainless steel (clamps)"]
[20,"Constructions Material, piping support",null,"Stainless Steel",null,"carbon steel and partially in stainless steel (clamps)"]
[21,"Type",null,"To be specified",null,"specified during engineering"]
[22,"Supported by",null,"Floor [Note: or] Structures [Note: or] Building",null,"confirmed"]
[23,"Free space underneath pipe support","mm","To be specified",null,"specified during engineering"]

{"sheet":"Structures and Platforms","index":16,"n_rows":23,"n_cols":6,"rows_kept":23,"cut":false,"hidden":false,"merged":[]}
["Structures and Platforms",null,null,null,null,"Front Page"]
["No.","Description","Units","AB InBev","Contractor","Notes"]
[1,"Constructions, structures, platforms and stairs for support of operational and maintenance access, for all new plants. ",null,"To be supplied","confirmed"]
[]
[{"$f":"A3+1","v":2},"Minimum hydraulic retention Time",null,"To be specified","to be clarified"]
[{"$f":"A5+1","v":3},"Constructions Material, Structure",null,"Hot-dip galvanized steel","confirmed"]
[{"$f":"A6+1","v":4},"Constructions Material, Platform",null,"Hot-dip galvanized steel","confirmed"]
[5,"Platform, Type",null,"To be specified","to be defined during engineering, depending on application"]
[6,"Platform, load capacity\n","kg/m2","To be specified","to be defined during engineering, depending on application"]
[7,"Constructions Material, Stairs",null,"Hot-dip galvanized steel","confirmed"]
[8,"Stairs, Type",null,"To be specified","cage ladders, optional helical stairs for anaerobic reactor"]
[9,"Constructions Material, Caged Ladders",null,"Hot-dip galvanized steel","confirmed"]
[10,"Free space underneath Platform","mm","To be specified","to be defined during engineering, depending on application"]
[]
[{"$f":"+A13+1","v":11},"Structure and Platform No.",null,"To be specified"]
[{"$f":"+A15+1","v":12},"Constructions Material, Structure",null,"Hot-dip galvanized steel","confirmed"]
[{"$f":"+A16+1","v":13},"Constructions Material, Platform",null,"Hot-dip galvanized steel","confirmed"]
[{"$f":"+A17+1","v":14},"Platform, Type",null,"To be specified","to be defined during engineering, depending on application"]
[15,"Platform, load capacity","kg/m2","To be specified","to be defined during engineering, depending on application"]
[16,"Constructions Material, Stairs",null,"Hot-dip galvanized steel","confirmed"]
[17,"Stairs, Type",null,"To be specified","cage ladders, optional helical stairs for anaerobic reactor"]
[18,"Constructions Material, Caged Ladders",null,"Hot-dip galvanized steel","confirmed"]
[19,"Free space underneath Platform","mm","To be specified","to be defined during engineering, depending on application"]

{"sheet":"Other Mechanical Works","index":17,"n_rows":12,"n_cols":6,"rows_kept":12,"cut":false,"hidden":false,"merged":[]}
["Other Mechanical Works",null,null,null,null,"Front Page"]
["No.","Description","Units","AB InBev","Contractor","Notes"]
[1,"Hoists and/or devices for maintenance or replacement of motors, pumps and other equipment, supplied under this contract.",null,"To be supplied","confirmed"]
[2,"Special tools to be included required for operation and maintenance, of equipment supplied under this contract. ",null,"To be supplied","confirmed"]
[3,"Minimum hydraulic retention Time",null,"To be supplied","not applicable"]
[4,"Numbering of pipes and equipment according to the AB InBev’s standard, of equipment supplied under this contract.",null,"To be supplied","confirmed"]
[5,"Marking of pipes and equipment according to the AB InBev’s standard.",null,"To be supplied","confirmed"]
[6,"Initial and first charge of oil, special chemicals, etc, of equipment supplied under this contract. ",null,"To be supplied","confirmed"]
[7,"Weather protection of equipment in case of outdoor installations, of equipment supplied under this contract.",null,"To be supplied","weather protection sheds by civil contractor"]
[8,"All work and items required to secure tank and equipment support to the floor or support structure, of equipment supplied under this contract.",null,"To be supplied","confirmed, except if grouting is required, to be done by civil contractor"]
[9,"Heat tracing where necessary to secure outdoor piping against freezing, of equipment supplied under this contract.",null,"To be supplied","confirmed"]
[10,"The Contractor to include any temporary arrangements required allowing the production to continue during the erection, testing and commissioning, of equipment supplied under this contract.",null,"To be supplied","confirmed"]

{"sheet":"Automation","index":18,"n_rows":77,"n_cols":6,"rows_kept":77,"cut":false,"hidden":false,"merged":[[12,5,12,6],[1,5,1,6],[2,0,2,6],[3,5,3,6],[11,5,11,6],[4,5,4,6],[5,5,5,6],[6,5,6,6],[7,5,7,6],[8,5,8,6],[9,5,9,6],[10,5,10,6],[56,5,56,6],[13,5,13,6],[14,5,14,6],[23,5,23,6],[25,5,25,6],[40,5,40,6],[41,0,41,6],[42,5,42,6],[47,5,47,6],[48,5,48,6],[49,5,49,6],[55,5,55,6],[43,5,43,6],[44,5,44,6],[45,5,45,6],[46,5,46,6],[74,5,74,6],[75,5,75,6],[76,5,76,6],[58,5,58,6],[65,0,65,6],[66,5,66,6],[67,5,67,6],[72,5,72,6],[73,5,73,6],[68,5,68,6],[69,5,69,6],[70,5,70,6],[71,5,71,6],[63,5,63,6],[50,5,50,6],[51,5,51,6],[52,5,52,6],[53,5,53,6],[54,5,54,6],[57,5,57,6],[59,5,59,6],[60,5,60,6],[61,5,61,6],[62,5,62,6],[22,5,22,6],[24,5,24,6],[26,5,26,6],[15,5,15,6],[16,5,16,6],[17,5,17,6],[18,5,18,6],[19,5,19,6],[0,5,0,6],[37,5,37,6],[38,5,38,6],[39,5,39,6],[32,5,32,6],[33,5,33,6],[34,5,34,6],[35,5,35,6],[36,5,36,6],[27,5,27,6],[28,5,28,6],[29,5,29,6],[30,5,30,6],[31,5,31,6],[20,5,20,6],[21,5,21,6]]}
["Automation",null,null,null,null,"Front Page"]
["No.","Description","Unit / Criteria","AB InBev","Contractor","Notes"]
["GENERAL CONTROL SYSTEM SPECIFICATIONS"]
[1,"Process Control System, Make & Type",null,"Wonderware System Platform","Siemens WinCC Professional v15.1"]
[{"$f":"A4+1","v":2},"Minimum hydraulic retention Time","Yes/No","To be specified","to be clarified"]
[3,"Data Storage online/archive","Years","1/5","confirmed"]
[4,"System availability","%","99.9","confirmed"]
[5,"Language - operator interface (HMI)",null,"English","confirmed"]
[6,"Functional Requirements:"]
[7,"Functional Structure","Yes/No","To be specified","Yes"]
[8,"Screen Pictures","Yes/No","To be specified","Yes"]
[9,"Recipe Management","Yes/No","To be specified","No"]
[10,"Batch Management","Yes/No","To be specified","No"]
[11,"Route Management","Yes/No","To be specified","Yes"]
[12,"Batch Scheduling","Yes/No","To be specified","No"]
[13,"Trend Curves","Yes/No","To be specified","Yes"]
[14,"Alarm Handling","Yes/No","To be specified","Yes"]
[15,"Logging of data to SQL database","Yes/No","To be specified","Yes"]
[16,"Access Control","Yes/No","To be specified","Yes"]
[17,"Control System Status Overview","Yes/No","To be specified","Yes"]
[18,"Operator interface to MES functions","Yes/No","To be specified","to be checked, depends on how the connection should be done"]
[19,"Web Browser","Yes/No","To be specified","No"]
[20,"Video Mode","Yes/No","To be specified","No"]
[21,"MES Functionality:",null,"To be specified"]
[22,"Interface to MES System","Yes/No","To be specified","to be checked, depends on how the connection should be done"]
[23,"Interface to ERP System","Yes/No","To be specified","to be checked, depends on how the connection should be done"]
[24,"Recipe Management","Yes/No","To be specified","No"]
[25,"Production Scheduling","Yes/No","To be specified","No"]
[26,"Batch Reporting","Yes/No","To be specified","No"]
[27,"Inventory Survey","Yes/No","To be specified","No"]
[28,"Production Reports","Yes/No","To be specified","No"]
[29,"Batch / Product Tracking/Tracing","Yes/No","To be specified","No"]
[30,"Alarm statistics","Yes/No","To be specified","Yes"]
[31,"Report Generator","Yes/No","To be specified","No"]
[32,"Key Operating Parameters, KOP","Yes/No","To be specified","No"]
[33,"Key Performance Parameters, KPI","Yes/No","To be specified","No"]
[{"$f":"A36+1","v":34},"Utility Reports","Yes/No","To be specified","No"]
[35,"Energy Management System","Yes/No","To be specified","No"]
[36,"Maintenance Management System","Yes/No","To be specified","No"]
[37,"Laboratory Information Management System (LIMS)","Yes/No","To be specified","No"]
[]
["SPECIFIC CONTROL SYSTEM SPECIFICATIONS - SCADA SYSTEM"]
[{"$f":"A40+1","v":38},"SCADA system software, incl. Licenses","no.",1,"confirmed"]
[{"$f":"A43+1","v":39},"SCADA application software for Refrigeration Plant","no.",1,"not applicable"]
[{"$f":"A44+1","v":40},"Requirement specification of data handling","no.",1,"confirmed"]
[{"$f":"A45+1","v":41},"MES functionality application software for Refrigeration Plant","no.",1,"to be checked, depends on how the connection should be done"]
[{"$f":"A46+1","v":42},"Application software for interface to MES & ERP system","no.",1,"to be checked, depends on how the connection should be done"]
[43,"SCADA Operator Work Stations for Refrigeration Plant","no.",3,"not applicable"]
[{"$f":"A48+1","v":44},"Specifications for operator workstations:","no.","2 screens, each 24\"","confirmed"]
[45,"Big supervisory mimic screens, covering Refrigeration Plant","no.",2,"not applicable"]
[{"$f":"A50+1","v":46},"Specifications for big supervisory screens:",null,"40\"","not applicable"]
[47,"I/O SCADA Servers","no.",1,"confirmed"]
[48,"Specifications for I/O Servers",null,"Redundant"]
[49,"SQL Server","no.",1]
[50,"Specifications for SQL Server"]
[51,"Back-up Server","no.",1,"not confirmed"]
[52,"MES Server","no.",1,"not confirmed"]
[53,"Specifications for MES Server"]
[54,"Engineering Station"]
[55,"Specifications for engineering station"]
[56,"Printers","no.",2,1]
[57,"Specifications for printers",null,"Laser printer\nColour printer","confirmed"]
[58,"VPN connection","no.",1,"by client"]
[59,"Specification for VPN connection"]
[]
["SPECIFIC CONTROL SYSTEM SPECIFICATIONS - PLC SYSTEM"]
[{"$f":"A64+1","v":60},"PLC system software, incl. licenses","No.",1,"confirmed"]
[{"$f":"A67+1","v":61},"PLC application software for Refrigeration Plant","No.",1,"not applicable"]
[62,"PLC application software for Refrigeration Plant","No.",1,"not applicable"]
[63,"PLC for Refrigration Plant","No.",1,"not applicable"]
[64,"Remote I/O, incl. panels for Refrigeration Plant","No.",null,"not applicable"]
[65,"Specifications for PLC",null,"Make: Siemens/Rockwell\nType: SIMATIC S7-400\nControlLogix\n","Siemens\nSIMATIC S7-400"]
[66,"Specifications for Remote I/O",null,"Make: Siemens/Rockwell\nType: ET200\nControlLogix\n","Siemens\nET200","In dwg format files"]
[]
[{"$f":"#REF!+1","v":{"$error":"#REF!"}}]
[{"$f":"A75+1","v":{"$error":"#REF!"}}]
[{"$f":"A76+1","v":{"$error":"#REF!"}}]

{"sheet":"Electrical Installations","index":19,"n_rows":13,"n_cols":6,"rows_kept":13,"cut":false,"hidden":false,"merged":[[14,5,14,6],[0,5,0,6],[7,5,7,6],[9,5,9,6],[10,5,10,6],[12,5,12,6],[13,5,13,6],[1,5,1,6],[2,0,2,6],[3,5,3,6],[4,5,4,6],[6,5,6,6]]}
["Electrical Installations",null,null,null,null,"Front Page"]
["No.","Description","Unit / Criteria","AB InBev","Contractor","Notes"]
["SPECIFICATION OF ELECTRICAL INSTALLATIONS"]
[1,"Supply and Erection of Motor Control Centres (MCCs); including remote PLC interface modules",1,"To be supplied","confirmed"]
[{"$f":"A4+1","v":2},"Minimum hydraulic retention Time",1,"To be supplied","to be clarified"]
[3,"Supply and installation of frequency converters",1,"To be supplied","confirmed"]
[4,"Supply and Installation of isolator switches for electrical motors",1,"To be supplied","confirmed"]
[5,"Supply and installation of power cables",1,"To be supplied","confirmed, power supply and connection to local control panel by client"]
[6,"Supply and installation of control and instrumentation cables",1,"To be supplied","confirmed"]
[7,"Supply and installation of UPS for PLC and SCADA System; with a power capacity for 2 huors",1,"To be supplied","confirmed"]
[8,"Equipotential bonding of equipment and structures by use of a specific network interconnected to the plant’s general protective bonding circuit.",1,"To be supplied","confirmed"]
[9,"Delivery and installation of pneumatic field installation",1,"To be supplied","confirmed"]
[10,"Other electrical materials necessary for completion of the electrical installation, such as: conduits, cable trays, junction boxes, support materials, general hardware, etc.",1,"To be supplied","confirmed"]

{"sheet":"Documentation","index":20,"n_rows":37,"n_cols":7,"rows_kept":37,"cut":false,"hidden":false,"merged":[[16,5,16,6],[5,5,5,6],[1,5,1,6],[2,0,2,6],[3,5,3,6],[4,5,4,6],[11,5,11,6],[12,0,12,6],[13,5,13,6],[14,0,14,6],[15,5,15,6],[6,5,6,6],[7,5,7,6],[8,5,8,6],[9,5,9,6],[10,5,10,6],[25,5,25,6],[26,5,26,6],[27,5,27,6],[28,0,28,6],[17,0,17,6],[0,5,0,6],[36,5,36,6],[30,5,30,6],[31,5,31,6],[32,5,32,6],[33,5,33,6],[34,5,34,6],[35,5,35,6],[29,5,29,6],[18,5,18,6],[19,5,19,6],[20,5,20,6],[21,5,21,6],[22,0,22,6],[23,5,23,6],[24,5,24,6]]}
["Documentation",null,null,null,null,"Front Page"]
["No.","Description","Unit / Criteria","AB InBev","Contractor","Notes"]
["Amount of Copies"]
[1,"Electronic Progress Report","no.","1 weekly and 1 monthly","confirmed"]
[{"$f":"1+A4","v":2},"Minimum hydraulic retention Time","no.","1, when changes","to be clarified"]
[3,"Electronic Quality Assurance System","no.",1,"confirmed"]
[4,"Electronic Design Documentation for approval by the Engineer","no.",1,"confirmed"]
[5,"Paper copies of Design Documentation for approval by the Engineer, in suitable binding","no.",2,"confirmed"]
[6,"Electronic Operation and Maintenance Manuals ","no.",1,"confirmed","To be delivered to the engineer prior to testing of the plant."]
[7,"Paper copies of Operation and Maintenance Manuals, in suitable binding","no.",4,"confirmed","To be delivered to the engineer prior to testing of the plant."]
[8,"Electronic As-built Documentation","no.",1,"confirmed"]
[9,"Paper copies of As-built Documentation, in suitable binding","no.",2,"confirmed"]
["Response Times"]
[{"$f":"A12+1","v":10},"Response time for Approval by AB InBev and Engineer","-","10 working days","confirmed"]
["Language"]
[{"$f":"A14+1","v":11},"Language of documentation","-","English","confirmed"]
[{"$f":"A16+1","v":12},"Language of documentation which might be subject to local authorities","-","Spanish and English","not confirmed, only English"]
["Format of documentation"]
[{"$f":"A17+1","v":13},"Electronic text documents","format","Word 2010, \nLetter or ISO-A formatted\nAlso in pdf format","confirmed"]
[{"$f":"A19+1","v":14},"Electronic lists and data sheets","format","Excel 2010\nAlso in pdf format","confirmed"]
[{"$f":"A20+1","v":15},"Drawings","format","AutoCAD 2016 (dwg format)\n2D or 3D\nAlso in pdf format","confirmed",null,"In dwg format files"]
[{"$f":"A21+1","v":16},"Time Schedules","format","Microsoft Project 2010\nAlso in pdf format","confirmed"]
["Design Documentation Deliverables","Design Documentation Deliverables"]
[{"$f":"A22+1","v":17},"Control system hardware documentation","document","To be supplied","confirmed",null,"by Control System Supplier / Brewhouse Contractor, as applicable in individual project, and as stated in column D"]
[{"$f":"A24+1","v":18},"Standard Software documentation","document","To be supplied","confirmed",null,"by Control System Supplier / Brewhouse Contractor, as applicable in individual project, and as stated in column D"]
[{"$f":"A25+1","v":19},"Application Software documentation","document","To be supplied","confirmed",null,"by Control System Supplier / Brewhouse Contractor, as applicable in individual project, and as stated in column D"]
[{"$f":"A26+1","v":20},"System operating instruction","document","To be supplied","confirmed",null,"by Control System Supplier / Brewhouse Contractor, as applicable in individual project, and as stated in column D"]
[{"$f":"A27+1","v":21},"Functional Specification documentation, General Part and FDS","document","To be supplied","confirmed",null,"by Control System Supplier / Brewhouse Contractor, as applicable in individual project, and as stated in column D"]
["Process Specific SCADA Specifications","Process Specific SCADA Specifications"]
[{"$f":"A28+1","v":22},"Production scheduling for Raw Material Only",null,"To be supplied","not applicable"]
[{"$f":"A30+1","v":23},"Recipe management. This does not typically apply to Utility Suppliers.",null,"To be supplied","not applicable"]
[24,"Process Batch reports",null,"To be supplied","not applicable",null,"- Reports for each batch operation (Unit Operation)\n- Reports fro Process Area\n- Reports for Cross - - Process Areas"]
[25,"Utility Reports: Production reports and key performance figures",null,"To be supplied","not confirmed"]
[26,"Other reports",null,"To be supplied","not confirmed"]
[27,"Historical Trending",null,"To be supplied","confirmed"]
[28,"Process Areas: Inventory survey for raw materials (silo balance) and auxilliary",null,"To be supplied","not applicable"]
[29,"Utility Areas: Inventory survey for \"raw\" materials and consumables",null,"To be supplied","not confirmed"]

{"sheet":"Training","index":21,"n_rows":19,"n_cols":6,"rows_kept":19,"cut":false,"hidden":false,"merged":[[11,5,11,6],[5,5,5,6],[1,5,1,6],[2,5,2,6],[3,5,3,6],[4,0,4,6],[6,5,6,6],[16,5,16,6],[17,5,17,6],[18,5,18,6],[19,5,19,6],[12,5,12,6],[13,5,13,6],[14,5,14,6],[15,5,15,6],[7,5,7,6],[8,0,8,6],[9,5,9,6],[10,5,10,6],[0,5,0,6]]}
["Training",null,null,null,null,"Front Page"]
["No.","Description","Units","AB InBev","Contractor","Notes"]
[1,"Trainers language of expertise","-","English and Spanish","not confirmed, only English"]
[2,"Language of training material","-","English and Spanish","not confirmed, only English"]
["Training at Contractor’s Premises (Off-site Training)"]
[3,"Amount of hard copies of training material to be delivered by the Contractor","no.","Operation: 12 off\nMaintenance: 6 off","not applicable"]
[4,"Number of people to participate ","no.","Operation: 4 off\nMaintenance: 4 off","not applicable"]
[5,"Training duration","hours","To be specified","not applicable"]
["Training at AB InBev’s Premises (On-site Training)\nTraining for All"]
[6,"Amount of hard copies of training material to be delivered by the Contractor","no.","Operation: 12 off\nMaintenance: 6 off","confirmed"]
[7,"Number of people to participate ","no.","Operation: 6 off\nMaintenance: 4 off","confirmed"]
[8,"Training duration","hours","To be specified",40,"classroom + on-the-job training during start-up of the plant"]
[{"$f":"A12+1","v":9},"Travel and per diem cost for the AB InBev's staff","responsible","AB InBev","confirmed"]
[{"$f":"A13+1","v":10},"Cost for training facilities on-site","responsible","AB InBev","confirmed"]
[11,"Cost for the instructors and other training resources","responsible","Contractor","confirmed"]
[12,"Travel and accomodation costs for the Contractor's Staff on-site or off-site","responsible","Contractor","confirmed"]
[13,"Cost for all training material, including translation costs, if any","responsible","Contractor","confirmed"]
[14,"Costs for interpreters during training","responsible","Contractor","confirmed"]
[15,"Cost for training facilities off-site","responsible","Contractor","confirmed"]

{"sheet":"Required Makes - Mechanical","index":22,"n_rows":112,"n_cols":8,"rows_kept":112,"cut":false,"hidden":false,"merged":[[1,0,1,7],[12,0,12,7],[60,0,60,7]]}
["Required Makes - Mechanical",null,null,null,null,null,null,"Front Page"]
["Brewhouse"]
["No.","Valve Type","Application","Required Makes","Comments","Contractor Makes","Contractor Types","Notes"]
[1,"Process valves, seat","< DN 150","Alfa-Laval\nSPX\nGEA\nPentair",null,"not applicable","not applicable"]
[{"$f":"+A4+1","v":2},"Minimum hydraulic retention Time","< DN 150","Alfa-Laval\nSPX\nGEA\nPentair",null,"not applicable","not applicable"]
[{"$f":"+A5+1","v":3},"Process valves \n",">DN 150","Keystone\nAmri","Casing: Grey cast iron\nDisc and counter flange: Stainless steel","not applicable","not applicable"]
[{"$f":"+A6+1","v":4},"Modulating control valves ",null,"Samson",null,"not applicable","not applicable"]
[5,"Double Seated Leakproof Valves",null,"Alfa-Laval\nSPX\nGEA\nPentair",null,"not applicable","not applicable"]
[6,"Sample Valve, Microbiological",null,"Keofitt W9, type h",null,"not applicable","not applicable"]
[7,"Sample Valve, Chemical",null,"Keofitt W9, type h",null,"not applicable","not applicable"]
[8,"Other Process valves",null,"To be specified",null,"not applicable","not applicable"]
[]
["Beer Processing and Filtration"]
["No.","Process Valve Type","Application","Required Makes","Comments","Contractor Makes","Contractor Types","Notes"]
[{"$f":"+A11+1","v":9},"Process valves, seat",null,"Alfa-Laval\nSPX\nGEA\nPentair",null,"not applicable","not applicable"]
[{"$f":"+A15+1","v":10},"Process valves, butterfly",null,"Alfa-Laval\nSPX\nGEA\nPentair","Sandwich type","not applicable","not applicable"]
[{"$f":"+A16+1","v":11},"Double Seated Leak-proof valves\nIndividual Seat Lift","Wort\nYeast\nUnfiltered Beer","Alfa-Laval\nSPX\nGEA\nPentair",null,"not applicable","not applicable"]
[{"$f":"+A17+1","v":12},"Double Seated Leak-proof valves\nFlushing Only","Bright Beer","Bray\nAlfa-Laval\nSPX\nGEA\nPentair",null,"not applicable","not applicable"]
[13,"Double Seated Leak-proof valves\nNo Flushing","DAW:DAW\nCIP","SPX\nGEA-Tuchenhagen\nPentair",null,"not applicable","not applicable"]
[14,"Modulating control valves ",null,"Samson\nFisher","Stainless steel","not applicable","not applicable"]
[15,"Pressure safety valves",null,"Pentair","Stainless steel\nHygienic","not applicable","not applicable"]
[16,"Vacuum safety valves",null,null,null,"not applicable","not applicable"]
[17,"Non-return valves",null,"SPX Rosista\nKeystone\nPentair",null,"not applicable","not applicable"]
[18,"Sample Valve, Microbiological",null,"Keofitt W9, type h",null,"not applicable","not applicable"]
[19,"Sample Valve, Chemical","Yeast Propagation Vessels","Keofitt",null,"not applicable","not applicable"]
[20,"Sample Valve, Chemical",null,"Keofitt W9, type h",null,"not applicable","not applicable"]
[21,"Other Process valves",null,"To be specified",null,"not applicable","not applicable"]
[]
["No.","Process Pump Type","Application","Required Makes","Comments","Contractor Makes","Contractor Types","Notes"]
[{"$f":"+A27+1","v":22},"Centrifugal",null,"SPX\nFristam\nGEA","Sanitary","not applicable","not applicable"]
[{"$f":"+A30+1","v":23},"Rotary Lobe Pump","Yeast","Alfa Laval\nGEA Hilge","Sanitary","not applicable","not applicable"]
[{"$f":"+A31+1","v":24},"Rotary Lobe Pump",null,"Alfa Laval\nGEA Hilge",null,"not applicable","not applicable"]
[{"$f":"+A32+1","v":25},"Helical rotor",null,"Mono","Sanitary","not applicable","not applicable"]
[{"$f":"+A31+1","v":24},"Diaphragm",null,"Wilden","Sanitary","not applicable","not applicable"]
[{"$f":"+A34+1","v":25},"Peristaltic",null,"Bredel","Sanitary","not applicable","not applicable"]
[{"$f":"+A33+1","v":26},"Rubber impeller",null,"Jabsco","Sanitary","not applicable","not applicable"]
[{"$f":"+A36+1","v":27},"Mechanical seals",null,"Sealing Tech.",null,"not applicable","not applicable"]
[{"$f":"+A35+1","v":26},"Other pumps",null,"To be specified",null,"not applicable","not applicable"]
[]
["No.","Process Instrument Type","Application","Required Makes","Comments","Contractor Makes","Contractor Types","Notes"]
[{"$f":"+A38+1","v":27},"Pressure gauge",null,"Pressure gauge Ashcroft\nBudenberg","S/S sanitary diaphragm","not applicable","not applicable"]
[{"$f":"+A41+1","v":28},"Vacuum gauge",null,"Pressure gauge Ashcroft\nBudenberg","S/S sanitary diaphragm","not applicable","not applicable"]
[]
["No.","CIP Devices","Application","Required Makes","Comments","Contractor Makes","Contractor Types","Notes"]
[{"$f":"+A42+1","v":29},"Rotary Device/Jet Cleaning",null,"Alfa Laval",null,"not applicable","not applicable"]
[{"$f":"+A45+1","v":30},"Spray Ball",null,"GEA",null,"not applicable","not applicable"]
[]
["No.","Heat Exchanger","Application","Required Makes","Comments","Contractor Makes","Contractor Types","Notes"]
[{"$f":"+A46+1","v":31},"Plate heat exchanger",null,"Alfa Laval",null,"not applicable","not applicable"]
[{"$f":"+A49+1","v":32},"Shell and tube exchanger",null,"Alfa Laval",null,"not applicable","not applicable"]
[]
["No.","Agitator","Application","Required Makes","Comments","Contractor Makes","Contractor Types","Notes"]
[{"$f":"+A50+1","v":33},"Agitator",null,"Alfa Laval",null,"not applicable","not applicable"]
[]
["No.","Sterile Filter, Air","Application","Required Makes","Comments","Contractor Makes","Contractor Types","Notes"]
[{"$f":"+A53+1","v":34},"Sterile Filter, Air",null,"Donaldson",null,"not applicable","not applicable"]
[]
["No.","UV Unit","Application","Required Makes","Comments","Contractor Makes","Contractor Types","Notes"]
[{"$f":"+A56+1","v":35},"UV Unit",null,"Hanovia",null,"not applicable","not applicable"]
[]
["Utility Equipment"]
["No.","Water","Application","Required Makes","Comments","Contractor Makes","Contractor Types","Notes"]
[{"$f":"+A59+1","v":36},"Ball valves","<DN100","Keystone\n",null,null,"For ≤ DN50\nType: full bore, 2 or 3-piece depending on application, lockable.\nConnection: inside threaded connection (BSP as standard, NPT on request).\nMaterial: stainless steel AISI 316 body and ball, PTFE stem and ball seal"]
[{"$f":"+A63+1","v":37},"Butterfly valves","≥DN100","SPX\nGEA\nKeystone\n","Valves ≥150 to be with manual gear",null,"For ≥ DN65\nDN65 -DN250: Handle with 10 snap-in positions\nDN300-DN500: Handwheel (gear box) with position indicator\n\nType: wafer or lug type depending on application.\nConnection: standard EN1092-1 PN10 (ANSI B16.5 #150 on request)\nMaterial: cast iron body (GG25/GGG40), stainless steel AISI 304(316) disk and stem, EPDM seat and seals"]
[{"$f":"+A64+1","v":38},"Gate valves",null,"KSB",null,null,"Only for sludge lines ≥ DN65\n\nType: wafer/lug type, unidirection or bidirectional depending on application, handwheel (gear box) with position indicator\nConnection: standard EN1092-1 PN10 (ANSI B16.5 #150 on request)\nMaterial: cast iron body (GG25/GGG40), stainless steel AISI 304(316) knife gate and stem (non rising), Metal/Metal sealing"]
[{"$f":"+A65+1","v":39},"Control valves",null,"Fisher\nSamson",null,null,"Modulating:\nType: butterfly valve, wafer type, with pneumatic actuator, positioner with position feedback\nConnection: for in-between flanges, standard EN1092-1 PN10 (ANSI B16.5 #150 on request)\nMaterial: cast iron body (GG25/GGG40), stainless steel AISI 304(316) disk and stem, EPDM seat and seals (depending on medium)\n\nON/OFF:\nType 1: butterfly valve, wafer type, with pneumatic actuator\nConnection: for in-between flanges, standard EN1092-1 PN10 (ANSI B16.5 #150 on request)\nMaterial: cast iron body (GG25/GGG40), stainless steel AISI 304(316) disk and stem, EPDM seat and seals (depending on medium)\n\nType 2: 24 VDC solenoid valve,  (only for clean water)\nConnection: inside threaded.\nMaterial: stainless steel"]
[{"$f":"+A66+1","v":40},"Flow balancing valves",null,"TA Hydronics\nArmstrong",null,null,"N/A"]
[]
["No.","Steam and Condensate","Application","Required Makes","Comments","Contractor Makes","Contractor Types","Notes"]
[{"$f":"+A67+1","v":41},"Manual valves",null,"Spirax Sarco\nArmstrong","Globe, flanged","not applicable","not applicable"]
[{"$f":"+A70+1","v":42},"Control valves",null,"Spirax Sarco\nArmstrong",null,"not applicable","not applicable"]
[{"$f":"+A71+1","v":43},"Pressure reduction valves",null,"Spirax Sarco\nArmstrong",null,"not applicable","not applicable"]
[{"$f":"+A72+1","v":44},"Sight glass",null,"Spirax Sarco\nArmstrong",null,"not applicable","not applicable"]
[{"$f":"+A73+1","v":45},"Steam traps",null,"Spirax Sarco\nArmstrong",null,"not applicable","not applicable"]
[]
["No.","Ammonia","Application","Required Makes","Comments","Contractor Makes","Contractor Types","Notes"]
[{"$f":"+A74+1","v":46},"Valves",null,"Herl\nDanfoss",null,"not applicable","not applicable"]
[{"$f":"+A77+1","v":47},"Back pressure valves",null,"Herl\nDanfoss",null,"not applicable","not applicable"]
[{"$f":"+A78+1","v":48},"Solenoid valves",null,"Herl\nDanfoss",null,"not applicable","not applicable"]
[{"$f":"+A79+1","v":49},"Liquid injection system",null,"Danfoss",null,"not applicable","not applicable"]
[{"$f":"+A80+1","v":50},"Pressure indicators",null,"Herl\nDanfoss",null,"not applicable","not applicable"]
[]
["No.","Ethanol / Glycol",null,"Required Makes","Comments","Contractor Makes","Contractor Types","Notes"]
[{"$f":"+A81+1","v":51},"Butterfly valves",null,"Keystone\nBray Challenger","Cast Steel Housing, if installed in carbon steel piping","not applicable","not applicable"]
[{"$f":"+A84+1","v":52},"Control valves",null,"Fisher\nSamson",null,"not applicable","not applicable"]
[{"$f":"+A85+1","v":53},"Flow balancing valves",null,"TA Hydronics\nFDI Hydroflow\nFrese Alpha\nOventrop\nKSB Boa-Control\nIMS",null,"not applicable","not applicable"]
[]
["No.","Compressed Air","Application","Required Makes","Comments","Contractor Makes","Contractor Types","Notes"]
[{"$f":"+A86+1","v":54},"Ball valves",null,"Keystone\n",null,null,"For distribution system of instrument (or compressed) air:\nType: full bore 2-piece ball valve, lockable.\nConnection: inside threaded connection (BSP as standard, NPT on request).\nMaterial: stainless steel AISI 316 body and ball, PTFE stem and ball seal"]
[{"$f":"+A89+1","v":55},"Pressure reduction valves",null,"Atlas Copco",null,null,"Pressure regulators (for instr. air):\nFilter / pressure regulator for instrument air (for 10 barg)\nComponents: pressure regulator, indicator, filter (40-50 microns)\nConnection: depending on location\n- Female thread (BSP as standard, NPT on request); \n- Hose connector for pneumatic hoses "]
[{"$f":"+A90+1","v":56},"Air service units and cylinders (pneumatics)",null,"SMC\nFesto","As per ISO Standard",null,"For actuators in control valves:\nType: pneumatic, single or double acting depending on the application, 90º turn."]
[{"$f":"+A91+1","v":57},"Air hoses, General",null,"SMC, TH\nFesto, PLN","As per ISO Standard",null,"Tubing for instrument air:\nPolyamide tube, black, UV resistant, OD: 8 mm"]
[{"$f":"+A92+1","v":58},"Air hoses, CIP",null,"SMC, TLM\nFesto, PFAN","As per ISO Standard",null,"N/A"]
[]
["No.","CO2 (Gas)","Application","Required Makes","Comments","Contractor Makes","Contractor Types","Notes"]
[{"$f":"+A93+1","v":59},"Ball valves",null,"Keystone\nPentair","Stainless steel up to and including 1½” BSP","not applicable","not applicable"]
[{"$f":"+A96+1","v":60},"CO2 Regulation valve",null,"?",null,"not applicable","not applicable"]
[{"$f":"+A97+1","v":61},"Butterfly valves",null,"SPX\nGEA\nKeystone\nPentair","Sandwich type\nF990, F991 or F991","not applicable","not applicable"]
[]
["No.","Hot Liquor and Hot Caustic","Application","Required Makes","Comments","Contractor Makes","Contractor Types","Notes"]
[{"$f":"+A98+1","v":62},"Butterfly valves",null,"SPX\nGEA\nPentair\nKeystone","K-Lok stainless steel","not applicable","not applicable"]
[]
["No.","Hydraulics","Application","Required Makes","Comments","Contractor Makes","Contractor Types","Notes"]
[{"$f":"+A101+1","v":63},"Cylinders and control valves",null,"Mannesmann\nRexroth","As per ISO Standard","not applicable","not applicable"]
[]
["No.","Pumps","Application","Required Makes","Comments","Contractor Makes","Contractor Types","Notes"]
[{"$f":"+A104+1","v":64},"Centrifugal","Water","Southern Cross\nGrundfos","CI, ZFB or Stainless Steel, Sovereign, Starline","KSB","centrifugal"]
[{"$f":"+A107+1","v":65},"Centrifugal","Glycol/Ethanol","Southern Cross\nGrundfos","CI, ZFB or Stainless Steel, Sovereign, Starline","not applicable","not applicable"]
[{"$f":"+A108+1","v":66},"Canned motor pumps","Ammonia","Hermetic",null,"not applicable","not applicable"]
[{"$f":"+A109+1","v":67},"Diaphragm","Chemical dosing","Wilden",null,"Jesco","diaphragm"]
[68,"Multistage pump","Condensate","Spirax Sarco",null,"not applicable","not applicable"]
[69,"Mechanical seals",null,"Sealing Tech."]

{"sheet":"Required Makes - Electrical","index":23,"n_rows":46,"n_cols":9,"rows_kept":46,"cut":false,"hidden":false,"merged":[[1,0,1,8],[16,0,16,8],[34,0,34,8]]}
["Required Makes - Electrical",null,null,null,null,null,null,null,"Front Page"]
["Electrical Components"]
["No.","Component","Application","Required Makes","Required Type","Output","Contractor Makes","Contractor Types","Notes"]
[1,"LV Switchboards",null,"Siemens\nSchneider",null,null,"Rittal"]
[2,"Minimum hydraulic retention Time",null,"Siemens\nSchneider",null,null,"to be clarified"]
[3,"Fuses",null,"Siemens\nSchneider"]
[4,"MV Cables",null,null,"3-core XLPE insulated PVC bedded; steel wire armoured, PVC sheathed cables and conform to SANS 1339 Type A, rated voltage 6.35/11 kV",null,"not applicable","not applicable"]
[5,"LV Main cables",null,null,"4 core PVC Insulated PV bedded SWA PVC sheathed 600/1000 V cables manufactured to SANS 1507-3 (similar tp IEC 60502-1)",null,null,"NYY-J/ OZ                                                                                                                     Plain copper conductor, to DINVDEcl.1 or cl.2 solid or stranded type, BScl.1 or cl.2, IEC60228 and HD383\nPVC core insulation, DIV4 to HD603.1\nCores stranded concentrically\nColour coded to DINVDE0293-308, 0276\npart603 or HD186\nCore colour for 3+½ conductor\nJ-type: gnye (½), bn, bk, gy\nO-type: bu (½), bn, bk, gy\nPVC outer jacket, DMV5 to HD603.1\nSheath colour black"]
[6,"Digital instruments",null,null,"YY min 0.75 mm sq",null,null,"control cable; flexible; numbered conductors; with GR/YE conductor"]
[7,"Analogue Instruments",null,null,"CY min 0.75 mm sq ",null,null,"screened control cable; flexible; numbered conductors; without GNYE conductor; UV resistant"]
[8,"AS-i",null,"Siemens\nIFM\nPhoenix","Flat Yellow cable suitable for IP67K"]
[9,"Profibus PA",null,"Siemens","Profibus PA Type A to IEC61158-2",null,null,"• PROFIBUS DP (in accordance with DIN\n19245 and EN 50170, e.g. for SIEMENS\nSIMATIC\n®\n NET, also suitable for FIP - \nFactory Instrumentation Protocol)."]
[10,"Ethernet",null,null,"Cat 6 up to 80 m. Fibre Optic over 80 m",null,null,"ETHERLINE® Y Cat.5e BK 2x2AWG22/7"]
[11,"PLC",null,"Siemens\nRockwell","SIMATIC S7-400/1500 [Note: Or]\nControlLogix",null,null,"ETHERLINE® FD P FC Cat.5"]
[12,"Remote I/O",null,"Siemens\nRockwell","ET200\nControlLogix",null,null,"ETHERLINE® FD P FC Cat.5"]
[]
["Analogue Instruments"]
["No.","Instrument","Application","Required Makes","Type","Output","Contractor Makes","Contractor Types","Notes"]
[11,"Temperature transmitter",null,"E & H","RTD, TMT182 transmitter","4-20mA, HART [Note: Or] Profibus PA","E & H"]
[12,"Pressure transmitter",null,"E & H\nVega","PMP / PMC 5X","4-20mA, HART [Note: Or] Profibus PA","E & H"]
[13,"Level transmitter\nDifferential pressure","Level in sanitary tanks","E & H\nVega","FMB7X","4-20mA, HART [Note: Or] Profibus PA","E & H"]
[14,"Level transmitter\nMicrowave / Ultrasonic",null,"E & H\nVega","Solids : FMP57, Liquids FMR52\nVegapulse 63","4-20mA, HART [Note: Or] Profibus PA","E & H"]
[15,"Flowmeter, Electro-magnetic",null,"E & H\nSiemens","Promag 100/300 Series\nSITRANS MAG 1100 / 1100F / 3100 / 6000","4-20mA, HART or Profibus PA","E & H"]
[16,"Flow-transmitter, Mass",null,"E & H\nSiemens","Promass 100/200/500 series\nSITRANS FC430 / MASS 2100 / MASS 6000","4-20mA, HART [Note: Or] Profinet [Note: Or] Ethernet IP","E & H"]
[17,"Alcohol analyser",null,"Anton Paar","mPDS5 evaluation unit\nInline pump\nL-Dens 4x7 sensor","4-20mA, HART [Note: Or] Profinet [Note: Or] Ethernet IP","not applicable","not applicable"]
[18,"Conductivity transmitter",null,"E & H\n","CLD134","Profinet [Note: Or] Ethernet IP","not applicable","not applicable"]
[19,"Frequency converters",null,"Danfoss\nRockwell\nSiemens","FC302 \n\nPowerFlex 52x\n75x\nSinamics G120 / G120C\n(The equipment must be of the same characteristics)","4-20mA, HART [Note: Or] Profinet [Note: Or] Ethernet IP","Danfoss","FC202/FC302"]
[20,"pH",null,"Mettler Toledo\nE & H",null,"4-20mA, HART [Note: Or] Profinet [Note: Or] Ethernet IP","E & H"]
["No.","Instrument","Application","Required Makes","Type","Output","Contractor Makes","Contractor Types","Notes"]
[21,"O2",null,"Haffmans\nAnton Paar (optic)",null,"4-20mA, HART [Note: Or] Profinet [Note: Or] Ethernet IP","not applicable","not applicable"]
[22,"CO2",null,"Haffmans\nAnton Paar (optic)",null,"4-20mA, HART [Note: Or] Profinet [Note: Or] Ethernet IP","not applicable","not applicable"]
[23,"Colour plus turbidity meter",null,"Sigrist\nHaffmans\nOptec\n(colour + turbidity meter)",null,"4-20mA, HART [Note: Or] Profinet [Note: Or] Ethernet IP","not applicable","not applicable"]
[24,"Plato degree",null,"Anton Paar\nCentec",null,"4-20mA, HART [Note: Or] Profinet [Note: Or] Ethernet IP","not applicable","not applicable"]
[]
["Digital Instruments"]
["No.","Instrument","Application","Required Makes",null,"Output","Contractor Makes","Contractor Types","Notes"]
[25,"Temperature switch",null,"E & H",null,"24VDC [Note: Or]  AS-i [Note: Or] IO Link","E & H"]
[26,"Pressure switch",null,"E & H",null,"24VDC [Note: Or]  AS-i [Note: Or] IO Link","E & H"]
[27,"Level switch (vibration)",null,"E & H\nVega",null,"24VDC [Note: Or]  AS-i [Note: Or] IO Link","E & H"]
[28,"Level electrode",null,"E & H\nVega",null,"24VDC [Note: Or]  AS-i [Note: Or] IO Link","E & H"]
[29,"Level amplifier (conductive)",null,"E & H\nVega",null,"24VDC [Note: Or]  AS-i [Note: Or] IO Link","E & H"]
[30,"Level switch capacity)",null,"E & H\nVega",null,"24VDC [Note: Or]  AS-i [Note: Or] IO Link","E & H"]
[31,"Flow switch",null,"E & H\nIFM",null,"24VDC [Note: Or]  AS-i [Note: Or] IO Link","E & H"]
[32,"Choke Detector Sensor",null,null,null,"24VDC [Note: Or]  AS-i [Note: Or] IO Link","not applicable","not applicable"]
[33,"Speed Sensor",null,null,null,"24VDC [Note: Or]  AS-i [Note: Or] IO Link","not applicable","not applicable"]
[34,"Proximity switch",null,"Any",null,"24VDC [Note: Or]  AS-i [Note: Or] IO Link"]

{"sheet":"Required Makes - Paint","index":24,"n_rows":16,"n_cols":5,"rows_kept":16,"cut":false,"hidden":false,"merged":[]}
["Required Makes - Paint",null,null,null,"Front Page"]
["No.","Component","Required Makes","Contractor","Notes"]
[1,"Bituminous, single component solution / coal-tar epoxy-polyamide","Betumox\nIntertuf-Ar\nSher-Tar 200 BR\nSher-Tar 2000"]
[{"$f":"A3+1","v":2},"Modified, dual-component, aluminum epoxy mastic","Macropoxy HS\nAlumínio BR"]
[{"$f":"A4+1","v":3},"Minimum hydraulic retention Time","Sher-Tile HS Primer BR\nIntergard poliamida"]
[4,"Acrylic-silicone primer resistant to temperature","Sumaterm 240 Primer"]
[5,"Paints resistant to high temperatures, based on modified, single component Silicone","Sumatherm 400"]
[6,"Dual-component, epoxy-isocyanide primer","Sumadur SP 530\nInterplate 1350"]
[7,"Modified, dual-component epoxy","Macropoxy 100\nSumastic 228"]
[8,"Aliphatic acrylic polyurethane enamel","Sumatane"]
[9,"Dual-component, epoxy-isocyanide primer","Sumadur SP 350\nInterplate 1350"]
[10,"Modified, dual-component aluminum epoxy mastic","Macropoxy HS Aluminum"]
[11,"Micaceous zinc","Sumadur"]
[12,"Primer, shore environment (high aggressiveness)","Sher-Tile HS Primer BR\nDura-Plate 235 Multi-Purpose Epoxy"]
[13,"Intermediate, shore environment (high aggressiveness)","Macropoxy 646 Fast Cure\nMacropoxy 100\nDura-Plate 235 Multi-Purpose Epoxy"]
[14,"Finish, shore environment (high aggressiveness)","Sumatane HS BR\nSumatane 355 HB\nSumatane HS gloss"]

{"sheet":"Revision History","index":25,"n_rows":5,"n_cols":5,"rows_kept":5,"cut":false,"hidden":false,"merged":[[0,0,0,3]]}
["Revision History",null,null,null,"Front Page"]
["Revision","Date","Responsible","Approval","Comments"]
["00","22 Dec 2017","Poul Erik Jensen, NIRAS","Pedro Hacker","Initial release"]
["1.0","2018-12-12","Miroslav Halachev ","Juan Rodriguez","New version "]
[null," "]